Transaction Reference,Supplier Name,Line Value,Department,Category,Transaction Date,Year/Period,SME,Costs split between Mid Suffolk and Babergh District Councils Y/N,% of transaction apportioned to Babergh District Council
359169,AARON SERVICES LTD,"29,189.01",Planned Maint - Heating,Property Servicing,31-Mar-22,2223/01,SME,N,
359341,AE WHITE SURFACING,"10,142.00",Pld Maint/ Enhncmts-C Parks,Repairs,31-Mar-22,2223/01,SME,N,
359289,ANGLIAN WATER,268.74,Other Temp Accommodation,Water Rates - Metered,03-Apr-22,2223/01,LGE,N,
359453,APSE,"1,640.00",Food & Safety (General),Agency Staff,20-Apr-22,2223/01,LGE,Y,50%
359453,APSE,"1,640.00",Animal Welfare Licensing,Agency Staff,20-Apr-22,2223/01,LGE,Y,50%
359417,BINDER LTD,345.32,Sewage Treatment Works,Contracted Services,08-Apr-22,2223/01,SME,N,
422575,BLUE FLAME (COLCHESTER) LTD,"1,271.98",PV Panels,Contracted Services,27-Apr-22,2223/01,SME,N,
422575,BLUE FLAME (COLCHESTER) LTD,243.24,Smoke Alarms (Bbgh Standard),Improvements,27-Apr-22,2223/01,SME,N,
422575,BLUE FLAME (COLCHESTER) LTD,"1,847.52",Planned Maint - Heating,Property Servicing,27-Apr-22,2223/01,SME,N,
359330,BOWER FULLER,"1,158.19",Assets & Development,Repairs,31-Mar-22,2223/01,SME,N,
359337,BOWER FULLER,"1,774.20",Temporary Accommodation,Fire Prevention,31-Mar-22,2223/01,SME,N,
359361,BUTTON & TURNER LTD,299.75,Open Spaces,Plant & Vehicle - Other costs,21-Mar-22,2223/01,SME,N,
359363,BUTTON & TURNER LTD,267.27,Open Spaces,Plant & Vehicle - Other costs,16-Mar-22,2223/01,SME,N,
359364,BUTTON & TURNER LTD,552.34,Open Spaces,Plant & Vehicle - Other costs,09-Mar-22,2223/01,SME,N,
359365,BUTTON & TURNER LTD,232.49,Street & Major Road Cleansing,Plant & Vehicle - Other costs,02-Mar-22,2223/01,SME,N,
359365,BUTTON & TURNER LTD,27.43,Open Spaces,Plant & Vehicle - Other costs,02-Mar-22,2223/01,SME,N,
359365,BUTTON & TURNER LTD,27.42,Street & Major Road Cleansing,Plant & Vehicle - Other costs,02-Mar-22,2223/01,SME,N,
359475,AQUASAMPLERS,450,Water Sampling,Sampling & Analysis,31-Mar-22,2223/01,SME,N,
359592,CEDARS HOTEL LTD,"48,400.00",Homelessness Private Sector,B&B Costs,25-Apr-22,2223/01,SME,Y,50%
359526,CHARTERED INSTITUTE OF ENVIRONMENTAL HEA,495,Housing Standards,Training,25-Apr-22,2223/01,LGE,N,
358402,CHIPSIDE LTD,800.17,C Parks General,Contracted Services,28-Feb-22,2223/01,SME,N,
359226,CHIPSIDE LTD,959.92,C Parks General,Contracted Services,31-Mar-22,2223/01,SME,N,
359346,CHIPSIDE LTD,959.92,C Parks General,Contracted Services,31-Mar-22,2223/01,SME,N,
359201,CLARKE FENCING LTD,315.79,Open Spaces,"Equipment, Tools & Materials",06-Apr-22,2223/01,SME,N,
359265,CLARKE FENCING LTD,298.41,Open Spaces,"Equipment, Tools & Materials",04-Apr-22,2223/01,SME,N,
359385,CLARKE FENCING LTD,757.88,Open Spaces,"Equipment, Tools & Materials",14-Apr-22,2223/01,SME,N,
359621,CLARKE FENCING LTD,"7,176.00",Homeless Prevention Fund,Misc Supplies & Services Costs,15-Mar-22,2223/01,SME,N,
359621,CLARKE FENCING LTD,"1,710.00",Homeless Prevention Fund,Misc Supplies & Services Costs,15-Mar-22,2223/01,SME,N,
359269,CLARKES OF WALSHAM LTD,827.1,RHSSF,"Equipment, Tools & Materials",08-Apr-22,2223/01,SME,N,
359505,CLARKES OF WALSHAM LTD,259.43,Building Services,"Equipment, Tools & Materials",22-Apr-22,2223/01,SME,N,
359164,D W ADAMS LTD,"4,796.00",Council House Adaptions,Improvements,05-Apr-22,2223/01,SME,N,
359075,EAST ANGLIA CLEANING SERVICES LTD,451.47,Open Spaces,General Cleaning,31-Mar-22,2223/01,SME,N,
359570,CIVICA ELECTION SERVICES,"4,010.53",Electoral Registration,Returning Officer Fees,15-Mar-22,2223/01,LGE,N,
359571,CIVICA ELECTION SERVICES,"3,763.85",Electoral Registration,Returning Officer Fees,16-Mar-22,2223/01,LGE,N,
422506,ELMHURST ENERGY SYSTEMS LTD - DD,376.96,Bldg Control Commercial Income,Contracted Services,31-Mar-22,2223/01,SME,N,
359424,ENGLISH SECURITY,62.5,Cedars Park,Emergency Lighting,07-Feb-22,2223/01,SME,N,
359424,ENGLISH SECURITY,62.5,Creeting Rd Depot,Emergency Lighting,07-Feb-22,2223/01,SME,Y,50%
359424,ENGLISH SECURITY,385.36,Sheltered Accommodation,Emergency Lighting,07-Feb-22,2223/01,SME,N,
359424,ENGLISH SECURITY,108.07,Temporary Accommodation,Fire Prevention,07-Feb-22,2223/01,SME,N,
359424,ENGLISH SECURITY,20,Tenancy Services,Emergency Lighting,07-Feb-22,2223/01,SME,N,
359424,ENGLISH SECURITY,62.44,Tenancy Services,Fire Prevention,07-Feb-22,2223/01,SME,N,
359424,ENGLISH SECURITY,131.89,Wingfield Barns,Emergency Lighting,07-Feb-22,2223/01,SME,N,
359436,ENVIRONMENT AGENCY,"1,942.50",Creeting Rd Depot,Misc Supplies & Services Costs,04-Apr-22,2223/01,LGE,Y,50%
359610,ENVIRONMENT AGENCY,"1,663.50",Recycling Centre,Misc Supplies & Services Costs,04-Apr-22,2223/01,LGE,N,
359236,ENVIROVENT LTD,460,Building Services,Repairs,31-Mar-22,2223/01,SME,N,
359166,FELGAINS CARE CENTRE,"6,010.00",Mand Disabled Facilities Grant,Grants,05-Apr-22,2223/01,SME,N,
359067,FELLBRIDGE BUILDING SERVICES,"10,191.23",Building Services,Repairs,31-Mar-22,2223/01,SME,N,
359068,FELLBRIDGE BUILDING SERVICES,"5,531.40",Building Services,Repairs,31-Mar-22,2223/01,SME,N,
359222,FELLBRIDGE BUILDING SERVICES,"1,227.71",Building Services,Repairs,07-Apr-22,2223/01,SME,N,
359223,FELLBRIDGE BUILDING SERVICES,"5,049.60",Building Services,Repairs,07-Apr-22,2223/01,SME,N,
359310,FELLBRIDGE BUILDING SERVICES,"10,421.34",Building Services,Repairs,11-Apr-22,2223/01,SME,N,
359479,FELLBRIDGE BUILDING SERVICES,"2,497.52",Building Services,Repairs,21-Apr-22,2223/01,SME,N,
359083,FORE-MOST GARAGE DOORS LTD,"1,034.00",Building Services,Repairs,31-Mar-22,2223/01,SME,N,
359607,GB ADAPTIONS LTD,300,Renovation/Home Repair Grants,Grants,26-Apr-22,2223/01,SME,N,
359501,GIPPING PRESS LTD,762,RHSSF,"Equipment, Tools & Materials",20-Apr-22,2223/01,SME,N,
359082,IMPROVEMENT & DEVELOPMENT AGENCY,"15,742.00",Management Team,Prof & Consultancy Fees,09-Apr-22,2223/01,SME,N,
359382,J NAREY & SONS,632.37,Open Spaces,Horticultural Purchases,17-Mar-22,2223/01,SME,N,
359433,KEN GRIME & SON LTD,967.37,Building Services,Repairs,20-Apr-22,2223/01,SME,N,
359561,KEYWAYS THE LOCKSMITHS LTD,380,Sheltered Accommodation,Repairs,26-Apr-22,2223/01,SME,N,
359340,LJ GAMMER (STOWMARKET) LTD,682.26,Building Services,Plant & Vehicle - Other costs,12-Apr-22,2223/01,SME,N,
359118,M & H CIVIL ENGINEERING LTD,876.3,Building Services,Repairs,31-Mar-22,2223/01,SME,N,
359171,MATERIAL CHANGE COMPOSTING LTD,379.21,Open Spaces,Waste Disposal,31-Mar-22,2223/01,LGE,N,
359225,MB TREES (EAST ANGLIA) LTD,975,Tenancy Services,Tree felling/maintenance,07-Apr-22,2223/01,SME,N,
359418,MB TREES (EAST ANGLIA) LTD,380,Amenity Areas,Tree felling/maintenance,19-Apr-22,2223/01,SME,N,
359421,MB TREES (EAST ANGLIA) LTD,420,Public Tree Programme,Tree felling/maintenance,19-Apr-22,2223/01,SME,N,
359400,MID SUFFOLK FENCING LTD,"1,938.00",Building Services,Repairs,13-Apr-22,2223/01,SME,N,
422539,NEEDHAM MARKET TOWN COUNCIL,"27,488.09",Current Liabilities,Parish Payments Available,06-Apr-22,2223/01,SME,N,
359472,PRO-FLAT SPECIALIST SERVICES LTD,459,Building Services,Repairs,21-Apr-22,2223/01,SME,N,
359154,REID PLUMBING & HEATING CONTRACTORS LTD,"8,731.73",Central Heating,Major Contracts,04-Apr-22,2223/01,SME,N,
359111,SACKERS LTD,"2,682.73",Building Services,Waste Disposal,31-Mar-22,2223/01,SME,Y,50%
359309,SSI SCHAEFER LTD,"14,786.40",Bins,Bins,11-Apr-22,2223/01,SME,Y,50%
359395,SSI SCHAEFER LTD,"31,104.40",Bins,Bins,14-Apr-22,2223/01,SME,Y,50%
359277,SUREFIX,750,Window & Door Rplcmts,Improvements,01-Apr-22,2223/01,SME,N,
359183,THERMATECH,"3,480.00",Sheltered Accommodation,Fire Prevention,05-Apr-22,2223/01,SME,N,
359407,THOMPSON COOPER LTD,"2,688.45",Street & Major Road Cleansing,"Equipment, Tools & Materials",19-Apr-22,2223/01,SME,Y,50%
359456,THOMPSON COOPER LTD,895.05,Street & Major Road Cleansing,"Equipment, Tools & Materials",20-Apr-22,2223/01,SME,Y,50%
359550,THOMPSON COOPER LTD,"2,589.17",Street & Major Road Cleansing,"Equipment, Tools & Materials",25-Apr-22,2223/01,SME,Y,50%
359493,UK POWER NETWORKS,"3,213.00",Paddock House Eye,Prof & Consultancy Fees,29-Mar-22,2223/01,LGE,N,
359098,WAVENEY LOWER YARE & LOTHINGLAND ID B,"17,706.00",Land Drainage,Misc Supplies & Services Costs,01-Jan-22,2223/01,SME,N,
359273,WINDIMAN LTD,"1,100.00",Major Imps,Improvements,08-Apr-22,2223/01,SME,N,
359274,WINDIMAN LTD,"1,304.70",Major Imps,Improvements,08-Apr-22,2223/01,SME,N,
359308,WINDIMAN LTD,825,Window & Door Rplcmts,Improvements,08-Apr-22,2223/01,SME,N,
359319,WINDIMAN LTD,760,Major Imps,Improvements,11-Apr-22,2223/01,SME,N,
359320,WINDIMAN LTD,760,Window & Door Rplcmts,Improvements,11-Apr-22,2223/01,SME,N,
359062,WORKWEAR (EAST ANGLIA) LTD,311.52,Building Services,Protective clothing,10-Mar-22,2223/01,SME,Y,50%
359093,WORKWEAR (EAST ANGLIA) LTD,154.97,Open Spaces,Protective clothing,31-Mar-22,2223/01,SME,N,
359093,WORKWEAR (EAST ANGLIA) LTD,154.98,Street & Major Road Cleansing,Protective clothing,31-Mar-22,2223/01,SME,Y,1%
359204,WORKWEAR (EAST ANGLIA) LTD,461.4,Open Spaces,Protective clothing,05-Apr-22,2223/01,SME,N,
359204,WORKWEAR (EAST ANGLIA) LTD,461.4,Street & Major Road Cleansing,Protective clothing,05-Apr-22,2223/01,SME,N,
359606,WYARDS REMOVALS,555,Tenancy Services,Removal Expenses,25-Apr-22,2223/01,SME,N,
359151,ARCHANT COMMUNITY MEDIA LTD,"1,056.80",Devt Management - Apps,Advertising&mkting (non-staff),31-Mar-22,2223/01,LGE,N,
359316,ARCHANT COMMUNITY MEDIA LTD,531.5,Devt Management - Apps,Advertising&mkting (non-staff),09-Apr-22,2223/01,LGE,N,
359372,ARCHANT COMMUNITY MEDIA LTD,820.42,Devt Management - Apps,Advertising&mkting (non-staff),19-Mar-22,2223/01,LGE,N,
359425,ARCHANT COMMUNITY MEDIA LTD,531.5,Devt Management - Apps,Advertising&mkting (non-staff),17-Apr-22,2223/01,LGE,N,
359517,HAYMARKET MEDIA GROUP LTD,"4,300.00",Devt Management - Apps,Subscriptions,25-Apr-22,2223/01,SME,Y,45%
422567,LOCAL GOVERNMENT ASSOCIATION,"10,080.16",Governance,Subscriptions,12-Apr-22,2223/01,LGE,N,
359015,ESSEX COUNTY COUNCIL,"9,957.40",Devt Management - Apps,Ecology Consultancy,29-Mar-22,2223/01,LGE,N,
359345,SERCO LTD,700,Domestic Waste,Refuse Contract,07-Apr-22,2223/01,LGE,Y,71%
359104,TRAVIS PERKINS TRADING CO LTD,660,Building Services,"Equipment, Tools & Materials",30-Mar-22,2223/01,LGE,N,
359157,TRAVIS PERKINS TRADING CO LTD,"54,893.93",Building Services,"Equipment, Tools & Materials",31-Mar-22,2223/01,LGE,Y,31%
359278,TRAVIS PERKINS TRADING CO LTD,"1,550.00",Building Services,"Equipment, Tools & Materials",06-Apr-22,2223/01,LGE,Y,50%
359343,TRAVIS PERKINS TRADING CO LTD,300,Building Services,"Equipment, Tools & Materials",08-Apr-22,2223/01,LGE,Y,50.00%
422569,EDF ENERGY,170.62,Headquarters General,Electricity,04-Apr-22,2223/01,LGE,N,
422569,EDF ENERGY,"17,514.35",Leisure Contract,Electricity,04-Apr-22,2223/01,LGE,N,
422569,EDF ENERGY,206.83,Open Spaces,Electricity,04-Apr-22,2223/01,LGE,N,
422569,EDF ENERGY,76.85,Public Conveniences,Electricity,04-Apr-22,2223/01,LGE,N,
422569,EDF ENERGY,146.14,Pure Gym & Adjacent Building,Electricity,04-Apr-22,2223/01,LGE,N,
422569,EDF ENERGY,"-5,770.36",Sheltered Accommodation,Electricity,04-Apr-22,2223/01,LGE,N,
422569,EDF ENERGY,483.53,Wingfield Barns,Electricity,04-Apr-22,2223/01,LGE,N,
422570,GPC BARCLAYS,"7,699.77",Current Assets,Barclaycard Control,14-Mar-22,2223/01,LGE,Y,26%
422508,ALLSTAR BUSINESS SOLUTIONS LTD,101.72,Housing Options,Plant & Vehicle Fuel,31-Mar-22,2223/01,SME,Y,50%
422508,ALLSTAR BUSINESS SOLUTIONS LTD,"9,806.90",Building Services,Plant & Vehicle Fuel,31-Mar-22,2223/01,SME,Y,50%
422578,COMPUTERSHARE ,"1,033.00",Current Assets,ChildCare Vouchers-Control,27-Apr-22,2223/01,LGE,N,
422512,BACTON PARISH COUNCIL,"14,773.76",Current Liabilities,Parish Payments Available,06-Apr-22,2223/01,SME,N,
359317,BADWELL ASH PARISH COUNCIL,"5,420.91",Current Liabilities,Parish Payments Available,11-Apr-22,2223/01,SME,N,
422513,BADWELL ASH PARISH COUNCIL,"39,516.42",Current Liabilities,Parish Payments Available,06-Apr-22,2223/01,SME,N,
422514,BARHAM PARISH COUNCIL,"7,281.28",Current Liabilities,Parish Payments Available,06-Apr-22,2223/01,SME,N,
422515,BARKING PARISH COUNCIL,"3,219.81",Current Liabilities,Parish Payments Available,06-Apr-22,2223/01,SME,N,
422516,BATTISFORD PARISH COUNCIL,349.85,Current Liabilities,Parish Payments Available,06-Apr-22,2223/01,SME,N,
422517,BOTESDALE PARISH COUNCIL,"35,426.79",Current Liabilities,Parish Payments Available,06-Apr-22,2223/01,SME,N,
422518,BRAMFORD PARISH COUNCIL,"58,770.77",Current Liabilities,Parish Payments Available,06-Apr-22,2223/01,SME,N,
422519,BROME & OAKLEY PARISH COUNCIL,"3,097.16",Current Liabilities,Parish Payments Available,06-Apr-22,2223/01,SME,N,
422520,BUXHALL PARISH COUNCIL,"5,120.18",Current Liabilities,Parish Payments Available,06-Apr-22,2223/01,SME,N,
422521,CLAYDON & WHITTON PARISH COUNCIL,"56,086.56",Current Liabilities,Parish Payments Available,06-Apr-22,2223/01,SME,N,
422522,COMBS PARISH COUNCIL,"6,490.59",Current Liabilities,Parish Payments Available,06-Apr-22,2223/01,SME,N,
422524,CREETING ST MARY PARISH COUNCIL,"10,223.98",Current Liabilities,Parish Payments Available,06-Apr-22,2223/01,SME,N,
422525,DEBENHAM PARISH COUNCIL,"13,686.76",Current Liabilities,Parish Payments Available,06-Apr-22,2223/01,SME,N,
359478,DEBENHAM VILLAGE HALL & PLAYING FIELD TR,"59,994.00",CIL Funded REFCUS,Grants,21-Apr-22,2223/01,SME,N,
422527,ELMSWELL PARISH COUNCIL,"72,283.48",Current Liabilities,Parish Payments Available,06-Apr-22,2223/01,SME,N,
422528,EYE TOWN COUNCIL,"10,555.12",Current Liabilities,Parish Payments Available,06-Apr-22,2223/01,SME,N,
422529,FRESSINGFIELD PARISH COUNCIL,"3,185.82",Current Liabilities,Parish Payments Available,06-Apr-22,2223/01,SME,N,
422530,GREAT BLAKENHAM PARISH COUNCIL,"2,059.24",Current Liabilities,Parish Payments Available,06-Apr-22,2223/01,SME,N,
422531,GREAT BRICETT PARISH COUNCIL,"8,707.18",Current Liabilities,Parish Payments Available,06-Apr-22,2223/01,SME,N,
422532,HAUGHLEY PARISH COUNCIL,"90,890.04",Current Liabilities,Parish Payments Available,06-Apr-22,2223/01,SME,N,
422533,HESSETT PARISH COUNCIL,868.62,Current Liabilities,Parish Payments Available,06-Apr-22,2223/01,SME,N,
422534,HOXNE PARISH COUNCIL,"3,412.25",Current Liabilities,Parish Payments Available,06-Apr-22,2223/01,SME,N,
422535,LAXFIELD PARISH COUNCIL,"37,322.50",Current Liabilities,Parish Payments Available,06-Apr-22,2223/01,SME,N,
422536,MELLIS PARISH COUNCIL,"3,170.27",Current Liabilities,Parish Payments Available,06-Apr-22,2223/01,SME,N,
422537,MENDHAM PARISH COUNCIL,"7,859.98",Current Liabilities,Parish Payments Available,06-Apr-22,2223/01,SME,N,
422538,MENDLESHAM PARISH COUNCIL,"9,218.09",Current Liabilities,Parish Payments Available,06-Apr-22,2223/01,SME,N,
359307,MUSEUM OF EAST ANGLIAN LIFE,"2,490.00",Business Innovation Grants,Grants,11-Apr-22,2223/01,SME,N,
422540,NORTON PARISH COUNCIL,"6,699.80",Current Liabilities,Parish Payments Available,06-Apr-22,2223/01,SME,N,
422541,PALGRAVE PARISH COUNCIL,"11,911.52",Current Liabilities,Parish Payments Available,06-Apr-22,2223/01,SME,N,
422542,RATTLESDEN PARISH COUNCIL,"26,644.00",Current Liabilities,Parish Payments Available,06-Apr-22,2223/01,SME,N,
422543,REDGRAVE PARISH COUNCIL,"1,287.06",Current Liabilities,Parish Payments Available,06-Apr-22,2223/01,SME,N,
422544,RICKINGHALL INFERIOR AND RICKINGHALL SUP,"3,929.29",Current Liabilities,Parish Payments Available,06-Apr-22,2223/01,SME,N,
422545,SOMERSHAM PARISH COUNCIL,"14,785.13",Current Liabilities,Parish Payments Available,06-Apr-22,2223/01,SME,N,
422546,STONHAM ASPAL PARISH COUNCIL,"8,788.16",Current Liabilities,Parish Payments Available,06-Apr-22,2223/01,SME,N,
422548,STOWUPLAND PARISH COUNCIL,"207,430.29",Current Liabilities,Parish Payments Available,06-Apr-22,2223/01,SME,N,
422549,STRADBROKE PARISH COUNCIL,"31,490.10",Current Liabilities,Parish Payments Available,06-Apr-22,2223/01,SME,N,
422550,THURSTON PARISH COUNCIL,"43,508.94",Current Liabilities,Parish Payments Available,06-Apr-22,2223/01,SME,N,
422551,WALSHAM LE WILLOWS PARISH COUNCIL,"20,388.50",Current Liabilities,Parish Payments Available,06-Apr-22,2223/01,SME,N,
422552,WATTISFIELD PARISH COUNCIL,"6,204.09",Current Liabilities,Parish Payments Available,06-Apr-22,2223/01,SME,N,
422553,WICKHAM SKEITH PARISH COUNCIL,"2,809.55",Current Liabilities,Parish Payments Available,06-Apr-22,2223/01,SME,N,
422554,WOOLPIT PARISH COUNCIL,"41,689.51",Current Liabilities,Parish Payments Available,06-Apr-22,2223/01,SME,N,
422555,WORLINGWORTH PARISH COUNCIL,"17,106.71",Current Liabilities,Parish Payments Available,06-Apr-22,2223/01,SME,N,
422556,WORTHAM AND BURGATE PARISH COUNCIL,"18,387.09",Current Liabilities,Parish Payments Available,06-Apr-22,2223/01,SME,N,
422557,WYVERSTONE PARISH COUNCIL,475.65,Current Liabilities,Parish Payments Available,06-Apr-22,2223/01,SME,N,
422558,YAXLEY PARISH COUNCIL,"22,160.71",Current Liabilities,Parish Payments Available,06-Apr-22,2223/01,SME,N,
359076,SUFFOLK COUNTY COUNCIL,300,Governance,Misc Supplies & Services Costs,30-Mar-22,2223/01,LGE,N,
359173,SUFFOLK COUNTY COUNCIL,"4,557.00",Stowmarket CAP,Operating Lease Payments,05-Apr-22,2223/01,LGE,Y,50%
359173,SUFFOLK COUNTY COUNCIL,"3,307.00",Stowmarket CAP,Contracted Services,05-Apr-22,2223/01,LGE,Y,50%
359174,SUFFOLK COUNTY COUNCIL,"41,000.00",Endeavour House - HQ,Operating Lease Payments,06-Apr-22,2223/01,LGE,Y,50%
359174,SUFFOLK COUNTY COUNCIL,"42,500.00",Endeavour House - HQ,Contracted Services,06-Apr-22,2223/01,LGE,Y,50%
359188,SUFFOLK COUNTY COUNCIL,375,Organisational Devt,Recruitment,05-Apr-22,2223/01,LGE,Y,50%
359231,SUFFOLK COUNTY COUNCIL,"9,000.00",Bring Sites,Contracted Services,06-Apr-22,2223/01,LGE,N,
359232,SUFFOLK COUNTY COUNCIL,"6,250.00",Jnt Waste Contract,Subscriptions,06-Apr-22,2223/01,LGE,N,
359275,SUFFOLK COUNTY COUNCIL,"2,281.67",Pre App Charging,Highways  Consultancy,07-Apr-22,2223/01,LGE,N,
359276,SUFFOLK COUNTY COUNCIL,"1,960.00",Land Chgs,Contracted Services,07-Apr-22,2223/01,LGE,N,
359344,SUFFOLK COUNTY COUNCIL,944,Pre App Charging,Prof & Consultancy Fees,11-Apr-22,2223/01,LGE,N,
359504,SUFFOLK COUNTY COUNCIL,"1,702.34",Building Servs Tech Staff,Software Licnse (Line of Bus) ,21-Apr-22,2223/01,LGE,Y,50%
359528,SUFFOLK COUNTY COUNCIL,"26,700.00",Civil Protection & Emerg Plg,Contributions & Donations,22-Apr-22,2223/01,LGE,N,
359152,ROYAL MAIL,747.5,Elections,Postage,30-Mar-22,2223/01,LGE,Y,100%
359350,STOWMARKET COMMUNITY SPORTS & SOCIAL CLU,"7,289.14",CIL Funded REFCUS,Grants,12-Apr-22,2223/01,SME,N,
422547,STOWMARKET TOWN COUNCIL,"9,142.49",Current Liabilities,Parish Payments Available,06-Apr-22,2223/01,SME,N,
359604,TELEFONICA UK LIMITED - O2,"1,398.83",ICT,Telephone Costs,27-Apr-22,2223/01,LGE,Y,50%
358951,KENNET EQUIPMENT LEASING,283.05,Creeting Rd Depot,Operating Lease Payments,28-Mar-22,2223/01,SME,Y,50%
359531,KENNET EQUIPMENT LEASING,283.05,Creeting Rd Depot,Operating Lease Payments,25-Apr-22,2223/01,SME,Y,50%
422572,GAZPROM ENERGY,15.51,"11 Market Place, Stowmarket",Gas,20-Apr-22,2223/01,SME,N,
422572,GAZPROM ENERGY,143.81,Creeting Rd Depot,Gas,20-Apr-22,2223/01,SME,Y,50%
422572,GAZPROM ENERGY,27.89,Headquarters General,Gas,20-Apr-22,2223/01,SME,N,
422572,GAZPROM ENERGY,"39,417.19",Leisure Contract,Gas,20-Apr-22,2223/01,SME,N,
422572,GAZPROM ENERGY,65.79,Pure Gym & Adjacent Building,Gas,20-Apr-22,2223/01,SME,N,
422572,GAZPROM ENERGY,"3,348.48",Sheltered Accommodation,Gas,20-Apr-22,2223/01,SME,N,
422572,GAZPROM ENERGY,296.36,Temporary Accommodation,Gas,20-Apr-22,2223/01,SME,N,
422572,GAZPROM ENERGY,310.62,Tenancy Services,Gas,20-Apr-22,2223/01,SME,N,
359585,PREMIER BODYWORKS,378.57,Street & Major Road Cleansing,Plant & Vehicle - Other costs,26-Apr-22,2223/01,SME,N,
359147,ERNEST DOE & SONS LTD,705.17,Open Spaces,Plant & Vehicle - Other costs,02-Mar-22,2223/01,LGE,N,
359148,ERNEST DOE & SONS LTD,"2,190.43",Open Spaces,Plant & Vehicle - Other costs,08-Mar-22,2223/01,LGE,N,
359513,SUFFOLK AGRICULTURAL ASSOCIATION,960.67,Bldg Regs Chargeable Serv,Advertising&mkting (non-staff),22-Apr-22,2223/01,SME,Y,50%
359088,PATHFINDER DEVELOPMENT CONSULTANTS LTD,"3,952.50","Mill Road, Laxfield",Prof & Consultancy Fees,31-Mar-22,2223/01,SME,N,
359089,PATHFINDER DEVELOPMENT CONSULTANTS LTD,"2,880.00","The Broadway, Badwell Ash",Prof & Consultancy Fees,31-Mar-22,2223/01,SME,N,
358972,WHYBROW PROPERTY SOLUTIONS LTD,"5,436.97",Building Services,Repairs,28-Mar-22,2223/01,SME,N,
359140,WHYBROW PROPERTY SOLUTIONS LTD,"5,000.00",Council House Adaptions,Improvements,04-Apr-22,2223/01,SME,N,
359142,WHYBROW PROPERTY SOLUTIONS LTD,"3,758.38",Building Services,Repairs,04-Apr-22,2223/01,SME,N,
359180,WHYBROW PROPERTY SOLUTIONS LTD,"7,000.00",Building Services,Repairs,05-Apr-22,2223/01,SME,N,
358986,L A C CLEANING CONTRACTORS LIMITED,275,Other Temp Accommodation,General Cleaning,28-Mar-22,2223/01,SME,N,
359605,L A C CLEANING CONTRACTORS LIMITED,366.16,Temporary Accommodation,General Cleaning,25-Apr-22,2223/01,SME,N,
359624,L A C CLEANING CONTRACTORS LIMITED,824.41,Temporary Accommodation,General Cleaning,25-Apr-22,2223/01,SME,N,
359299,BAREFOOT & GILLES LTD,"7,750.00",Cross Street Tech Hub,Prof & Consultancy Fees,09-Mar-22,2223/01,SME,N,
359413,CHILDCARE VOUCHER LTD EDENRED (UK GROUP),957.75,Health & Safety,Misc Employee Costs,19-Apr-22,2223/01,SME,Y,50%
359404,LARAC LTD,445,Jnt Waste Contract,Subscriptions,14-Apr-22,2223/01,SME,Y,50%
359005,OXBURY CHARTERED SURVEYORS,"1,800.00","The Broadway, Badwell Ash",Prof & Consultancy Fees,29-Mar-22,2223/01,SME,N,
422563,NEEDHAM MARKET COMMUNITY CENTRE,400,General Elections,Room Hire,07-Apr-22,2223/01,SME,N,
359348,OPUS PEOPLE SOLUTIONS LTD,470.57,Homeless Prevention Fund,Agency Staff,07-Apr-22,2223/01,SME,N,
359348,OPUS PEOPLE SOLUTIONS LTD,91.18,Governance,Agency Staff,07-Apr-22,2223/01,SME,N,
359348,OPUS PEOPLE SOLUTIONS LTD,258.78,Domestic Waste,Agency Staff,07-Apr-22,2223/01,SME,N,
359153,ECOSYSTEMS TREE & GROUNDS CARE,725,Needham Market Middle School,Tree felling/maintenance,04-Apr-22,2223/01,SME,N,
359189,CORNERSTONE BARRISTERS,600,Devt Management - Apps,Legal Expenses,06-Apr-22,2223/01,SME,N,
359237,CORNERSTONE BARRISTERS,"37,850.00",Devt Management - Apps,Legal Expenses,25-Mar-22,2223/01,SME,N,
359549,LLG ENTERPRISES LTD T/AS LLG LEGAL TRAIN,400,Monitoring Officer,Conference Expenses,02-Nov-21,2223/01,SME,Y,50%
359252,VERTAS GROUP LTD,"1,395.00",Unapportionable Central OHs,Security Systems,31-Mar-22,2223/01,SME,N,
359408,GALLAGHER CAR & VAN RENTALS LTD,"1,232.00",Domestic Waste,Refuse Contract,15-Apr-22,2223/01,LGE,N,
359437,GALLAGHER CAR & VAN RENTALS LTD,"1,400.00",Domestic Waste,Refuse Contract,15-Apr-22,2223/01,LGE,N,
359497,FORESOLUTIONS LTD,254.38,Open Spaces,Plant & Vehicle - Other costs,22-Apr-22,2223/01,SME,N,
359139,PENNA PLC,"4,000.00",Organisational Devt,Recruitment,31-Mar-22,2223/01,SME,Y,50%
359100,NAFN DATA AND INTELLIGENCE SERVICES,"1,600.00",Management Team,Subscriptions,01-Jan-22,2223/01,SME,N,
359280,GRANGEWOOD PLASTIC PACKAGING LTD,"16,546.25",Domestic Waste,Refuse Sacks,04-Apr-22,2223/01,SME,Y,7%
359095,RICHARD UTTING ASSOCIATES LLP,"4,072.42",Stowmarket Middle School,Prof & Consultancy Fees,28-Feb-22,2223/01,SME,N,
359096,RICHARD UTTING ASSOCIATES LLP,"2,124.74",Stowmarket Middle School,Prof & Consultancy Fees,31-Mar-22,2223/01,SME,N,
359101,RICHARD UTTING ASSOCIATES LLP,"2,055.00",Eves Meadow Haughley S106,Prof & Consultancy Fees,31-Mar-22,2223/01,SME,N,
359102,RICHARD UTTING ASSOCIATES LLP,"1,293.23","Green Road, Woolpit",Prof & Consultancy Fees,31-Mar-22,2223/01,SME,N,
359115,RICHARD UTTING ASSOCIATES LLP,"1,787.20",Needham Market Middle School,Prof & Consultancy Fees,31-Mar-22,2223/01,SME,N,
359431,RICHARD UTTING ASSOCIATES LLP,"1,280.00",Paddock House Eye,Prof & Consultancy Fees,31-Mar-22,2223/01,SME,N,
422511,HM COURTS & TRIBUNALS SERVICE  (DD ONLY),569,Devt Management - Apps,Legal Expenses,01-Apr-22,2223/01,LGE,N,
422565,LAXFIELD VILLAGE HALL,280,General Elections,Room Hire,07-Apr-22,2223/01,SME,N,
359255,PUBLIC SEWER SERVICES,714.82,Building Services,Repairs,31-Mar-22,2223/01,SME,N,
359261,PUBLIC SEWER SERVICES,824.14,Building Services,Repairs,31-Mar-22,2223/01,SME,N,
359262,PUBLIC SEWER SERVICES,815.13,Building Services,Repairs,31-Mar-22,2223/01,SME,N,
359103,THE STOWMARKET GLASS COMPANY LTD,"1,909.18",Building Services,Repairs,17-Mar-22,2223/01,SME,N,
359294,ASPECT CONTRACTS LTD,"4,367.00",Asbestos,Improvements,31-Mar-22,2223/01,LGE,N,
422510,RIX PETROLEUM (EAST ANGLIA) LTD,"7,410.52",Open Spaces,Plant & Vehicle Fuel,04-Apr-22,2223/01,SME,N,
358446,GIPPING OCCUPATIONAL HEALTH LTD,396,Health & Safety,Subsistence,03-Apr-22,2223/01,SME,N,
359394,GIPPING OCCUPATIONAL HEALTH LTD,306,Health & Safety,Contracted Services,14-Apr-22,2223/01,SME,N,
359238,PARK AVENUE RECRUITMENT LTD,902,Devt Management - Apps,Prof & Consultancy Fees,27-Mar-22,2223/01,SME,Y,50%
359323,SUFFOLK ASSOCIATION OF LOCAL COUNCILS,500,Cost of Democracy,Training,01-Apr-22,2223/01,SME,Y,50%
359202,PORTAL PLAN QUEST LTD,256,Devt Management - Apps,Planning Fees,06-Apr-22,2223/01,SME,N,
359141,ABBEYCROFT LEISURE,"5,552.20",Holiday Activity Fund,"Equipment, Tools & Materials",04-Apr-22,2223/01,LGE,N,
359384,BELLWAY HOMES LIMITED (ESSEX DIVISION),"139,740.67",Eves Meadow Haughley S106,Prof & Consultancy Fees,08-Apr-22,2223/01,LGE,N,
359256,SOLACE IN BUSINESS,"13,200.00",Bus Imp (Corp),Agency Staff,31-Mar-22,2223/01,SME,Y,50%
359205,A C LEIGH (NORWICH) LTD,897.52,Building Services,"Equipment, Tools & Materials",04-Apr-22,2223/01,SME,N,
359209,A C LEIGH (NORWICH) LTD,459.9,Building Services,"Equipment, Tools & Materials",05-Apr-22,2223/01,SME,N,
359443,A C LEIGH (NORWICH) LTD,329.56,Building Services,"Equipment, Tools & Materials",06-Apr-22,2223/01,SME,N,
359445,A C LEIGH (NORWICH) LTD,426.4,Building Services,"Equipment, Tools & Materials",07-Apr-22,2223/01,SME,N,
359021,SUFFOLK POWER EQUIPMENT,"1,658.84",Open Spaces,Plant & Vehicle - Other costs,29-Mar-22,2223/01,ST,Y,50%
359022,SUFFOLK POWER EQUIPMENT,"1,100.00",Open Spaces,"Equipment, Tools & Materials",29-Mar-22,2223/01,ST,Y,50%
359297,3 POINT PROPERTY MANAGEMENT LTD,675,Guaranteed Rent Scheme,Rent Payable,11-Apr-22,2223/01,SME,N,
359387,COOKS BLIND AND SHUTTERS LTD,342,Creeting Rd Depot,Grounds & Site Maintenance,14-Apr-22,2223/01,SME,Y,50%
359506,FLAGSHIP HOUSING GROUP LTD-RENT ACCOUNT,500,Homeless Prevention Fund,Misc Supplies & Services Costs,22-Apr-22,2223/01,LGE,N,
359149,APTL ENTERPRISES LTD,"3,762.50",PV Panels,Repairs,31-Mar-22,2223/01,SME,N,
359124,WASHCO LTD,467,Sheltered Accommodation,"Equipment, Tools & Materials",01-Apr-22,2223/01,SME,N,
359191,ANGLIA COMMERCIAL FLOORING LTD,747.75,Building Services,Repairs,23-Mar-22,2223/01,SME,N,
359192,ANGLIA COMMERCIAL FLOORING LTD,413.32,Building Services,Repairs,23-Mar-22,2223/01,SME,N,
359193,ANGLIA COMMERCIAL FLOORING LTD,855.98,Building Services,Repairs,23-Mar-22,2223/01,SME,N,
359194,ANGLIA COMMERCIAL FLOORING LTD,854.55,Building Services,Repairs,31-Mar-22,2223/01,SME,N,
359239,ANGLIA COMMERCIAL FLOORING LTD,437.72,Building Services,Repairs,07-Apr-22,2223/01,SME,N,
359240,ANGLIA COMMERCIAL FLOORING LTD,533.5,Building Services,Repairs,07-Apr-22,2223/01,SME,N,
359243,ANGLIA COMMERCIAL FLOORING LTD,"1,155.53",Building Services,Repairs,07-Apr-22,2223/01,SME,N,
359244,ANGLIA COMMERCIAL FLOORING LTD,"1,112.92",Building Services,Repairs,07-Apr-22,2223/01,SME,N,
359245,ANGLIA COMMERCIAL FLOORING LTD,939.63,Building Services,Repairs,07-Apr-22,2223/01,SME,N,
359246,ANGLIA COMMERCIAL FLOORING LTD,951.85,Building Services,Repairs,07-Apr-22,2223/01,SME,N,
359248,ANGLIA COMMERCIAL FLOORING LTD,270.57,Building Services,Repairs,07-Apr-22,2223/01,SME,N,
359249,ANGLIA COMMERCIAL FLOORING LTD,370.47,Building Services,Repairs,07-Apr-22,2223/01,SME,N,
359250,ANGLIA COMMERCIAL FLOORING LTD,468.7,Building Services,Repairs,07-Apr-22,2223/01,SME,N,
359480,ANGLIA COMMERCIAL FLOORING LTD,369.18,Building Services,Repairs,07-Apr-22,2223/01,SME,N,
359481,ANGLIA COMMERCIAL FLOORING LTD,501.78,Building Services,Repairs,08-Apr-22,2223/01,SME,N,
359482,ANGLIA COMMERCIAL FLOORING LTD,256.82,Building Services,Repairs,08-Apr-22,2223/01,SME,N,
359483,ANGLIA COMMERCIAL FLOORING LTD,645.27,Building Services,Repairs,08-Apr-22,2223/01,SME,N,
359484,ANGLIA COMMERCIAL FLOORING LTD,384.48,Building Services,Repairs,20-Apr-22,2223/01,SME,N,
359190,LITTLE ROCK LTD T/A SIGNS EXPRESS (IPS),787.5,Street & Major Road Cleansing,Bins,31-Mar-22,2223/01,SME,N,
422568,ANGLIAN WATER BUS (NAT) LTD T/A WAVE,46.88,"11 Market Place, Stowmarket",Water Rates - Metered,13-Apr-22,2223/01,LGE,N,
422568,ANGLIAN WATER BUS (NAT) LTD T/A WAVE,61,C Parks General,Water Rates - Metered,13-Apr-22,2223/01,LGE,N,
422568,ANGLIAN WATER BUS (NAT) LTD T/A WAVE,642.64,Creeting Rd Depot,Water Rates - Metered,13-Apr-22,2223/01,LGE,Y,50%
422568,ANGLIAN WATER BUS (NAT) LTD T/A WAVE,31.32,General/Supervision & Mgmt,Water Rates - Metered,13-Apr-22,2223/01,LGE,N,
422568,ANGLIAN WATER BUS (NAT) LTD T/A WAVE,163.83,Headquarters General,Water Rates - Metered,13-Apr-22,2223/01,LGE,N,
422568,ANGLIAN WATER BUS (NAT) LTD T/A WAVE,121.08,Open Spaces,Water Rates - Metered,13-Apr-22,2223/01,LGE,N,
422568,ANGLIAN WATER BUS (NAT) LTD T/A WAVE,737.21,Public Conveniences,Water Rates - Metered,13-Apr-22,2223/01,LGE,N,
422568,ANGLIAN WATER BUS (NAT) LTD T/A WAVE,4.06,Recycling Centre,Water Rates - Metered,13-Apr-22,2223/01,LGE,N,
422568,ANGLIAN WATER BUS (NAT) LTD T/A WAVE,4.06,Sewage Treatment Works,Water Rates - Metered,13-Apr-22,2223/01,LGE,N,
422568,ANGLIAN WATER BUS (NAT) LTD T/A WAVE,"4,864.61",Sheltered Accommodation,Water Rates - Metered,13-Apr-22,2223/01,LGE,N,
422568,ANGLIAN WATER BUS (NAT) LTD T/A WAVE,19.62,Temporary Accommodation,Water Rates - Metered,13-Apr-22,2223/01,LGE,N,
422568,ANGLIAN WATER BUS (NAT) LTD T/A WAVE,31.73,Tenancy Services,Water Rates - Metered,13-Apr-22,2223/01,LGE,N,
422568,ANGLIAN WATER BUS (NAT) LTD T/A WAVE,25.9,Wingfield Barns,Water Rates - Metered,13-Apr-22,2223/01,LGE,N,
422571,ANGLIAN WATER BUS (NAT) LTD T/A WAVE,"1,138.20",Sheltered Accommodation,Water Rates - Metered,07-Apr-22,2223/01,LGE,N,
359198,GREENACRE RECRUITMENT LTD,"1,119.99",Housing Standards,Agency Staff,06-Apr-22,2223/01,SME,Y,50%
359370,GREENACRE RECRUITMENT LTD,"1,210.44",Housing Standards,Agency Staff,12-Apr-22,2223/01,SME,Y,50%
359442,GREENACRE RECRUITMENT LTD,923.24,Housing Standards,Agency Staff,20-Apr-22,2223/01,SME,Y,50%
359158,PENTACO CONSTRUCTION LTD,"62,190.00",Stowmarket Middle School,Annual Bldg Maint Contracts,04-Apr-22,2223/01,SME,N,
359518,LIMELEASE LTD,395,Guaranteed Rent Scheme,Rent Payable,25-Apr-22,2223/01,SME,N,
359312,BUCHER MUNICIPAL LTD,509.71,Open Spaces,"Equipment, Tools & Materials",11-Apr-22,2223/01,LGE,N,
359144,PLUG-N-GO-LIMITED,550,Climate Change and Sustainabil,Misc Supplies & Services Costs,01-Apr-22,2223/01,SME,N,
359369,CAPITA BUSINESS SERVICES LTD (PAY360),"4,537.88",Bank Chgs,Bank Charges,13-Apr-22,2223/01,LGE,N,
359397,PRIVATE LANDLORD,786.5,Guaranteed Rent Scheme,Rent Payable,19-Apr-22,2223/01,ST,N,
359107,AFFINITY HEALTH AT WORK LTD,"5,750.00",Organisational Devt,Training,31-Mar-22,2223/01,SME,Y,50%
359426,AMPLIS CONSTRUCTION LTD,"6,201.33",Roads and Paths,Improvements,14-Apr-22,2223/01,SME,N,
359230,SUFFOLK DOORS & WINDOWS LTD,"4,750.00",Roofing,Improvements,07-Apr-22,2223/01,SME,N,
359287,PRIVATE LANDLORD,786.5,Guaranteed Rent Scheme,Rent Payable,11-Apr-22,2223/01,ST,N,
359080,COUNTRYSTYLE RECYCLING LTD,"4,521.01",Bring Sites,Contracted Services,31-Mar-22,2223/01,SME,N,
359081,COUNTRYSTYLE RECYCLING LTD,"6,003.71",Bring Sites,Contracted Services,31-Mar-22,2223/01,SME,N,
359186,COUNTRYSTYLE RECYCLING LTD,318,Trade Waste,Trade Waste Disposal,31-Mar-22,2223/01,SME,Y,50%
359187,COUNTRYSTYLE RECYCLING LTD,"4,976.59",Bring Sites,Contracted Services,31-Mar-22,2223/01,SME,N,
359136,DGL QUALITY MANAGEMENT LTD,870.76,Needham Market Middle School,Prof & Consultancy Fees,31-Mar-22,2223/01,SME,N,
359170,CROWD CONTROL TECHNOLOGIES LTD,"7,920.00",Communications,Subscriptions,31-Mar-22,2223/01,SME,Y,50%
359234,ARAN INSULATION LTD,292.51,Building Services,Repairs,31-Mar-22,2223/01,SME,N,
359234,ARAN INSULATION LTD,"1,137.95",Insulation Imps,Improvements,31-Mar-22,2223/01,SME,N,
359438,ARAN INSULATION LTD,"2,268.64",Insulation Imps,Improvements,31-Mar-22,2223/01,SME,N,
359458,ARAN INSULATION LTD,"1,742.20",Insulation Imps,Improvements,21-Apr-22,2223/01,SME,N,
359615,TREECONOMICS LTD,"8,315.00",Open Spaces,Contracted Services,27-Apr-22,2223/01,SME,Y,80.50%
359220,IAN BOOTH CONSULTANT ENGINEER LTD,360,Strategic Assets,Prof & Consultancy Fees,30-Mar-22,2223/01,SME,N,
359627,MARCHDELL LTD,715,Guaranteed Rent Scheme,Rent Payable,28-Apr-22,2223/01,SME,N,
359441,URBA,500,Devt Management - Apps,Viability,20-Apr-22,2223/01,SME,N,
359138,IPSERV LTD,"1,218.13",Central Printing,Commercial Printing,01-Apr-22,2223/01,SME,N,
359138,IPSERV LTD,"1,015.30",Communications,Commercial Printing,01-Apr-22,2223/01,SME,Y,6%
359163,SSE,263.41,Voids Maintenance,Electricity,09-Feb-22,2223/01,LGE,N,
359007,SEH FRENCH LTD,"81,331.00",Needham Lake Vis Centre (CAP),Major Contracts,29-Mar-22,2223/01,SME,N,
359396,PRIVATE LANDLORD,669,Guaranteed Rent Scheme,Rent Payable,19-Apr-22,2223/01,ST,N,
359285,PRIVATE LANDLORD,650,Guaranteed Rent Scheme,Rent Payable,11-Apr-22,2223/01,ST,N,
359298,PRIVATE LANDLORD,495,Guaranteed Rent Scheme,Rent Payable,11-Apr-22,2223/01,SME,N,
359625,SHJ HOMES LTD,500,Guaranteed Rent Scheme,Rent Payable,28-Apr-22,2223/01,SME,N,
359476,ENVIROAWARDS LTD,300,Jnt Waste Contract,Training,21-Apr-22,2223/01,SME,Y,50%
359263,FOOTBALL FUN FACTORY (FRANCHISING) LTD,"2,520.00",Holiday Activity Fund,"Equipment, Tools & Materials",05-Apr-22,2223/01,SME,N,
359645,KING GEORGE PLAYING FIELD COMMITTEE,"13,250.00",CIL Funded REFCUS,Grants,28-Apr-22,2223/01,SME,N,
422577,CEDARS PARK ART CIC,"4,890.00",Transformation Fund,Contributions & Donations,28-Apr-22,2223/01,SME,N,
359314,STANTEC UK LTD,"2,699.00",Devt Management - Apps,Environmental  Consultancy,11-Apr-22,2223/01,SME,N,
359210,PONT ENTERPRISES LTD,"1,919.77",Tenancy Services,Other Service Charges,28-Jan-21,2223/01,SME,N,
359211,PONT ENTERPRISES LTD,"11,049.30",Tenancy Services,Other Service Charges,28-Jan-21,2223/01,SME,N,
359212,PONT ENTERPRISES LTD,"12,966.91",Tenancy Services,Other Service Charges,28-Jan-21,2223/01,SME,N,
359213,PONT ENTERPRISES LTD,"11,635.88",Tenancy Services,Other Service Charges,28-Jan-21,2223/01,SME,N,
359215,PONT ENTERPRISES LTD,350,Tenancy Services,Other Service Charges,26-Nov-20,2223/01,SME,N,
359402,MOVEITCLEARITFINDITSTOREIT LTD,720,Homeless Prevention Fund,Removal Expenses,18-Apr-22,2223/01,SME,N,
359589,BEAVER BOXES,"3,171.00",Guaranteed Rent Scheme,Misc Supplies & Services Costs,26-Apr-22,2223/01,SME,N,
359168,LUNA LETTINGS LTD,"1,068.00",Renovation/Home Repair Grants,Grants,05-Apr-22,2223/01,SME,N,
359200,PM PROPERTY MAINTENANCE,"5,638.00",Mand Disabled Facilities Grant,Grants,06-Apr-22,2223/01,SME,N,
359352,ADAPTIVE SERVICES LTD,"4,998.04",Mand Disabled Facilities Grant,Grants,12-Apr-22,2223/01,SME,N,
359375,BONITAS WHOLESFOODS LTD,"1,212.00",Business Innovation Grants,Grants,12-Apr-22,2223/01,SME,N,
216,CHIPSIDE LTD,-125.91,C Parks General,Contracted Services,12-Apr-22,2223/01,SME,N,
216,CHIPSIDE LTD,-834.01,C Parks General,Contracted Services,12-Apr-22,2223/01,SME,N,
359311,WORKWEAR (EAST ANGLIA) LTD,-19.96,Building Services,Protective clothing,07-Apr-22,2223/01,SME,Y,50%
359626,SUFFOLK COUNTY COUNCIL,-349,Organisational Devt,Contracted Services,05-Apr-22,2223/01,LGE,Y,50%
359568,ROYAL MAIL,-747.5,Elections,Postage,15-Apr-22,2223/01,LGE,Y,100%
923,PORTAL PLAN QUEST LTD,-110,Devt Management - Apps,Planning Fees,26-Apr-22,2223/01,SME,N,
924,PORTAL PLAN QUEST LTD,110,Current Assets,LLOYDS GENERAL PAYMENTS,26-Apr-22,2223/01,SME,N,
EBC0046585,ASHFIELD STORAGE,140,Current Assets,LLOYDS GENERAL PAYMENTS,26-Apr-22,2223/01,SME,N,
360097,AARON SERVICES LTD,"10,423.64",Planned Maint - Heating,Property Servicing,10-May-22,2223/02,SME,N,
360029,AE WHITE SURFACING,"2,332.00",Recycling Centre,Contracted Services,05-May-22,2223/02,SME,N,
359719,ANGLIAN WATER,859.38,Water Sampling,Sampling & Analysis,28-Apr-22,2223/02,LGE,N,
359745,ANGLIAN WATER,338.76,Tenancy Services,Water Rates - Metered,25-Apr-22,2223/02,LGE,N,
359894,ANGLIAN WATER,"1,169.51",Tenancy Services,Water Rates - Metered,02-May-22,2223/02,LGE,N,
360050,ANGLIAN WATER,"1,225.07",Sheltered Accommodation,Water Rates - Metered,22-Feb-22,2223/02,LGE,N,
360125,ANGLIAN WATER,364.25,Tenancy Services,Water Rates - Metered,16-May-22,2223/02,LGE,N,
360234,APSE,"1,640.00",Food & Safety (General),Agency Staff,26-May-22,2223/02,LGE,Y,50%
360234,APSE,"1,640.00",Animal Welfare Licensing,Agency Staff,26-May-22,2223/02,LGE,Y,50%
359953,AQUAJET CLEANING EQUIPMENT LTD,"1,020.00",Creeting Rd Depot,"Equipment, Tools & Materials",12-May-22,2223/02,SME,Y,50%
360277,AQUAJET CLEANING EQUIPMENT LTD,156.09,Creeting Rd Depot,"Equipment, Tools & Materials",30-May-22,2223/02,SME,Y,50%
360150,BINDER LTD,996.83,Sewage Treatment Works,Contracted Services,16-May-22,2223/02,SME,N,
422596,BLUE FLAME (COLCHESTER) LTD,"3,367.43",Planned Maint - Heating,Property Servicing,18-May-22,2223/02,SME,N,
422596,BLUE FLAME (COLCHESTER) LTD,"1,681.56",PV Panels,Contracted Services,18-May-22,2223/02,SME,N,
359336,BOWER FULLER,274.95,Building Services,Repairs,31-Mar-22,2223/02,SME,N,
359861,BOWER FULLER,"1,122.33",Sheltered Accommodation,Fire Prevention,29-Apr-22,2223/02,SME,N,
359862,BOWER FULLER,321.38,Sheltered Accommodation,Fire Prevention,29-Apr-22,2223/02,SME,N,
359865,BOWER FULLER,319.14,Sheltered Accommodation,Fire Prevention,29-Apr-22,2223/02,SME,N,
359866,BOWER FULLER,364.92,Sheltered Accommodation,Fire Prevention,29-Apr-22,2223/02,SME,N,
359869,BOWER FULLER,"1,049.68",Sheltered Accommodation,Fire Prevention,29-Apr-22,2223/02,SME,N,
359870,BOWER FULLER,"3,416.77",Sheltered Accommodation,Electricity,29-Apr-22,2223/02,SME,N,
360013,BOWER FULLER,"4,254.11",Sheltered Accommodation,Repairs,16-May-22,2223/02,SME,N,
360014,BOWER FULLER,"19,100.21",Sheltered Accommodation,Fire Prevention,16-May-22,2223/02,SME,N,
359903,BROXAP LTD,680,Needham Lake Vis Centre (CAP),"Equipment, Tools & Materials",10-May-22,2223/02,LGE,N,
360044,BROXAP LTD,881.9,RHSSF,Bins,16-May-22,2223/02,LGE,N,
359925,BUTTON & TURNER LTD,409.03,Open Spaces,Plant & Vehicle - Other costs,20-Apr-22,2223/02,SME,N,
360248,CENTRAL TYRE LTD,272.38,Street & Major Road Cleansing,Plant & Vehicle - Other costs,18-May-22,2223/02,SME,N,
359759,CHIPSIDE LTD,886.42,C Parks General,Contracted Services,30-Apr-22,2223/02,SME,N,
359197,CLARKE FENCING LTD,"3,151.70",Creeting Rd Depot,Grounds & Site Maintenance,09-Feb-22,2223/02,SME,Y,50%
359474,CLARKE FENCING LTD,726.13,Open Spaces,"Equipment, Tools & Materials",21-Apr-22,2223/02,SME,N,
360015,CLARKE FENCING LTD,"1,092.46",Open Spaces,"Equipment, Tools & Materials",11-May-22,2223/02,SME,N,
360172,CLARKE FENCING LTD,448.3,Open Spaces,"Equipment, Tools & Materials",25-May-22,2223/02,SME,N,
359530,D W ADAMS LTD,"4,480.00",Council House Adaptions,Improvements,25-Apr-22,2223/02,SME,N,
360089,D W ADAMS LTD,444,Disabled Facilities (Revenue),Repairs,20-May-22,2223/02,SME,N,
360091,D W ADAMS LTD,"4,542.00",Council House Adaptions,Improvements,20-May-22,2223/02,SME,N,
359651,EAST ANGLIA CLEANING SERVICES LTD,"1,489.71",Jnt Waste Contract,General Cleaning,28-Apr-22,2223/02,SME,Y,50%
359851,EAST ANGLIA CLEANING SERVICES LTD,451.47,Open Spaces,General Cleaning,10-May-22,2223/02,SME,N,
360130,EAST SUFFOLK INTERNAL DRAINAGE BOARD,"42,954.00",Land Drainage,Misc Supplies & Services Costs,01-Apr-22,2223/02,SME,N,
359900,CIVICA ELECTION SERVICES,"1,403.93",Electoral Registration,Returning Officer Fees,11-Apr-22,2223/02,LGE,N,
359535,ENGLISH SECURITY,691.14,Sheltered Accommodation,Repairs,14-Apr-22,2223/02,SME,N,
359644,ENGLISH SECURITY,329.31,Sheltered Accommodation,Emergency Lighting,19-Apr-22,2223/02,SME,N,
359644,ENGLISH SECURITY,164.53,Sheltered Accommodation,Fire Prevention,19-Apr-22,2223/02,SME,N,
359644,ENGLISH SECURITY,242.76,Temporary Accommodation,Emergency Lighting,19-Apr-22,2223/02,SME,N,
359644,ENGLISH SECURITY,25,Tenancy Services,Emergency Lighting,19-Apr-22,2223/02,SME,N,
359644,ENGLISH SECURITY,68.75,Tenancy Services,Fire Prevention,19-Apr-22,2223/02,SME,N,
359644,ENGLISH SECURITY,75.49,Wingfield Barns,Emergency Lighting,19-Apr-22,2223/02,SME,N,
359899,ENVIROVENT LTD,709,Building Services,Repairs,04-May-22,2223/02,SME,N,
359933,ENVIROVENT LTD,290,Building Services,Repairs,11-May-22,2223/02,SME,N,
359086,FELLBRIDGE BUILDING SERVICES,695.41,Building Services,Repairs,31-Mar-22,2223/02,SME,N,
359525,FELLBRIDGE BUILDING SERVICES,"19,063.44",Building Services,Repairs,25-Apr-22,2223/02,SME,N,
359635,FELLBRIDGE BUILDING SERVICES,"15,710.32",Building Services,Repairs,28-Apr-22,2223/02,SME,N,
359661,FELLBRIDGE BUILDING SERVICES,"4,642.87",Building Services,Repairs,28-Apr-22,2223/02,SME,N,
359735,FELLBRIDGE BUILDING SERVICES,"6,649.34",Building Services,Repairs,02-May-22,2223/02,SME,N,
359779,FELLBRIDGE BUILDING SERVICES,"1,413.56",Building Services,Repairs,05-May-22,2223/02,SME,N,
359780,FELLBRIDGE BUILDING SERVICES,"1,743.78",Building Services,Repairs,05-May-22,2223/02,SME,N,
359790,FELLBRIDGE BUILDING SERVICES,"7,000.43",Insulation Imps,Improvements,05-May-22,2223/02,SME,N,
359829,FELLBRIDGE BUILDING SERVICES,"27,532.44",Building Services,Repairs,09-May-22,2223/02,SME,N,
360010,FELLBRIDGE BUILDING SERVICES,"19,785.44",Building Services,Repairs,16-May-22,2223/02,SME,N,
359656,FORE-MOST GARAGE DOORS LTD,"1,590.10",Building Services,Repairs,30-Apr-22,2223/02,SME,N,
360135,GB ADAPTIONS LTD,"6,866.60",Mand Disabled Facilities Grant,Grants,24-May-22,2223/02,SME,N,
359401,HAYES DIGGINS BUILDERS,"2,748.00","Fences, Gates and Walls",Improvements,14-Apr-22,2223/02,SME,N,
359527,HAYES DIGGINS BUILDERS,"4,085.00",Insulation Imps,Improvements,25-Apr-22,2223/02,SME,N,
359461,HUDSON MEDIA PARTNERSHIP LTD,325,Organisational Devt,Corporate Training,21-Apr-22,2223/02,SME,Y,50%
359935,KEN GRIME & SON LTD,"1,014.61",Building Services,Repairs,11-May-22,2223/02,SME,N,
360064,KENDA-CLEAN,62,Creeting Rd Depot,Window Cleaning,18-May-22,2223/02,SME,Y,50%
360064,KENDA-CLEAN,"2,074.00",Sheltered Accommodation,Window Cleaning,18-May-22,2223/02,SME,N,
360064,KENDA-CLEAN,123,Temporary Accommodation,Window Cleaning,18-May-22,2223/02,SME,N,
358916,KEYWAYS THE LOCKSMITHS LTD,462,Homeless Prevention Fund,Misc Supplies & Services Costs,25-Mar-22,2223/02,SME,N,
359983,KINGSLEY HOUSE HOTEL,"8,927.00",Homelessness Private Sector,B&B Costs,23-Mar-22,2223/02,SME,N,
359349,M & H CIVIL ENGINEERING LTD,784,Building Services,Repairs,31-Mar-22,2223/02,SME,N,
359751,M & H CIVIL ENGINEERING LTD,"1,249.60",Building Services,Repairs,03-May-22,2223/02,SME,N,
359901,M & H CIVIL ENGINEERING LTD,823.7,Building Services,Repairs,31-Mar-22,2223/02,SME,N,
360030,M & H CIVIL ENGINEERING LTD,"1,654.90",Building Services,Repairs,16-May-22,2223/02,SME,N,
360031,M & H CIVIL ENGINEERING LTD,"1,006.00",Building Services,Repairs,16-May-22,2223/02,SME,N,
359774,MALJON TIMBER PRESERVATION LTD,386,Building Services,Repairs,04-May-22,2223/02,SME,N,
359784,MATERIAL CHANGE COMPOSTING LTD,233.31,Open Spaces,Waste Disposal,30-Apr-22,2223/02,LGE,N,
359784,MATERIAL CHANGE COMPOSTING LTD,247.68,Open Spaces,"Equipment, Tools & Materials",30-Apr-22,2223/02,LGE,N,
359889,MATERIAL CHANGE COMPOSTING LTD,"2,880.00",Jnt Waste Contract,"Equipment, Tools & Materials",31-Mar-22,2223/02,LGE,Y,50%
359743,MB TREES (EAST ANGLIA) LTD,975,Public Tree Programme,Tree felling/maintenance,03-May-22,2223/02,SME,N,
359885,MB TREES (EAST ANGLIA) LTD,"1,820.00",Amenity Areas,Tree felling/maintenance,10-May-22,2223/02,SME,N,
359887,MB TREES (EAST ANGLIA) LTD,980,Amenity Areas,Tree felling/maintenance,10-May-22,2223/02,SME,N,
359898,MB TREES (EAST ANGLIA) LTD,680,Public Tree Programme,Tree felling/maintenance,10-May-22,2223/02,SME,N,
359954,MB TREES (EAST ANGLIA) LTD,380,Public Tree Programme,Tree felling/maintenance,12-May-22,2223/02,SME,N,
360039,MB TREES (EAST ANGLIA) LTD,"2,620.00",Public Tree Programme,Tree felling/maintenance,17-May-22,2223/02,SME,N,
360065,MB TREES (EAST ANGLIA) LTD,980,Tenancy Services,Grounds & Site Maintenance,17-May-22,2223/02,SME,N,
359694,MID SUFFOLK FENCING LTD,"4,976.00","Back Hills, Botesdale, S106",Prof & Consultancy Fees,04-May-22,2223/02,SME,N,
360043,MID SUFFOLK FENCING LTD,980,"Fences, Gates and Walls",Improvements,17-May-22,2223/02,SME,N,
359896,NORFOLK COUNTY COUNCIL,"4,734.72",Strategic Housing,Subscriptions,28-Apr-22,2223/02,LGE,N,
359195,REID PLUMBING & HEATING CONTRACTORS LTD,"5,057.47",Central Heating,Major Contracts,06-Apr-22,2223/02,SME,N,
359611,REID PLUMBING & HEATING CONTRACTORS LTD,"4,716.94",Central Heating,Major Contracts,13-Apr-22,2223/02,SME,N,
359612,REID PLUMBING & HEATING CONTRACTORS LTD,"9,168.61",Central Heating,Major Contracts,19-Apr-22,2223/02,SME,N,
359613,REID PLUMBING & HEATING CONTRACTORS LTD,"10,019.18",Central Heating,Major Contracts,20-Apr-22,2223/02,SME,N,
359614,REID PLUMBING & HEATING CONTRACTORS LTD,"9,183.42",Central Heating,Major Contracts,25-Apr-22,2223/02,SME,N,
359960,REID PLUMBING & HEATING CONTRACTORS LTD,"18,365.17",Central Heating,Major Contracts,13-May-22,2223/02,SME,N,
360020,REID PLUMBING & HEATING CONTRACTORS LTD,"19,485.85",Central Heating,Major Contracts,16-May-22,2223/02,SME,N,
360051,REID PLUMBING & HEATING CONTRACTORS LTD,"4,804.13",Central Heating,Major Contracts,18-May-22,2223/02,SME,N,
360120,REID PLUMBING & HEATING CONTRACTORS LTD,"18,671.54",Central Heating,Major Contracts,23-May-22,2223/02,SME,N,
360155,REID PLUMBING & HEATING CONTRACTORS LTD,"4,132.49",Central Heating,Major Contracts,25-May-22,2223/02,SME,N,
359752,SACKERS LTD,"1,644.51",Building Services,Waste Disposal,30-Apr-22,2223/02,SME,Y,50%
360063,SANDY LANE NURSERY,"2,450.00",Open Spaces,Horticultural Purchases,20-Apr-22,2223/02,SME,N,
360090,SHELTON DEVELOPMENT SEVICES LTD,"15,132.53",Assets & Development,Line of Business Applications,20-May-22,2223/02,SME,Y,50%
359832,SEAGER HOME SOLUTIONS,"7,209.87",Building Services,Repairs,09-May-22,2223/02,SME,N,
359955,SEAGER HOME SOLUTIONS,851.19,Building Services,BMBS Repairs Work,11-May-22,2223/02,SME,N,
359775,SOLUTIONS ON SECURITY SERVICES,630,Creeting Rd Depot,Security Systems,27-Apr-22,2223/02,SME,Y,50%
359676,SSI SCHAEFER LTD,"34,908.20",Bins,Bins,29-Apr-22,2223/02,SME,Y,24%
359768,SSI SCHAEFER LTD,"18,308.00",Bins,Bins,04-May-22,2223/02,SME,N,
359821,TDT ENTERPRISES LTD,768.26,Temporary Accommodation,Repairs,06-May-22,2223/02,SME,N,
359822,TDT ENTERPRISES LTD,"1,874.70",Conversions & Adaptations,Improvements,06-May-22,2223/02,SME,N,
359556,THERMATECH,150,Sheltered Accommodation,Fire Prevention,25-Apr-22,2223/02,SME,N,
359556,THERMATECH,350,Temporary Accommodation,Fire Prevention,25-Apr-22,2223/02,SME,N,
359556,THERMATECH,350,Creeting Rd Depot,Fire Prevention,25-Apr-22,2223/02,SME,N,
359890,THOMPSON COOPER LTD,994.5,Street & Major Road Cleansing,"Equipment, Tools & Materials",09-May-22,2223/02,SME,Y,50%
359934,THOMPSON COOPER LTD,533.75,Street & Major Road Cleansing,"Equipment, Tools & Materials",11-May-22,2223/02,SME,N,
360070,THOMPSON COOPER LTD,"1,275.00",Street & Major Road Cleansing,"Equipment, Tools & Materials",19-May-22,2223/02,SME,Y,50%
422598,THOMPSON COOPER LTD,"1,275.00",Street & Major Road Cleansing,"Equipment, Tools & Materials",19-May-22,2223/02,SME,Y,50%
360194,TRUCKEAST LTD,358.12,Street & Major Road Cleansing,Plant & Vehicle - Other costs,26-May-22,2223/02,LGE,N,
359597,WINDIMAN LTD,"1,340.00",Building Services,Repairs,26-Apr-22,2223/02,SME,N,
359599,WINDIMAN LTD,760,Major Imps,Improvements,26-Apr-22,2223/02,SME,N,
359601,WINDIMAN LTD,"1,250.00",Building Services,Repairs,26-Apr-22,2223/02,SME,N,
359602,WINDIMAN LTD,760,Major Imps,Improvements,26-Apr-22,2223/02,SME,N,
359948,WINDIMAN LTD,760,Major Imps,Improvements,12-May-22,2223/02,SME,N,
359949,WINDIMAN LTD,"2,070.00",Window & Door Rplcmts,Improvements,12-May-22,2223/02,SME,N,
359950,WINDIMAN LTD,650,Window & Door Rplcmts,Improvements,12-May-22,2223/02,SME,N,
359951,WINDIMAN LTD,760,Major Imps,Improvements,12-May-22,2223/02,SME,N,
359952,WINDIMAN LTD,"2,256.00",Window & Door Rplcmts,Improvements,12-May-22,2223/02,SME,N,
360078,WINDIMAN LTD,670,Major Imps,Improvements,19-May-22,2223/02,SME,N,
360080,WINDIMAN LTD,760,Building Services,Repairs,19-May-22,2223/02,SME,N,
360081,WINDIMAN LTD,760,Building Services,Repairs,19-May-22,2223/02,SME,N,
359678,WORKWEAR (EAST ANGLIA) LTD,345,Building Services,Protective clothing,26-Apr-22,2223/02,SME,Y,50%
359741,WORKWEAR (EAST ANGLIA) LTD,257.53,Building Services,Protective clothing,07-Apr-22,2223/02,SME,Y,50%
359956,ARCHANT COMMUNITY MEDIA LTD,872.95,Devt Management - Apps,Advertising&mkting (non-staff),07-May-22,2223/02,LGE,N,
359957,ARCHANT COMMUNITY MEDIA LTD,373.91,Devt Management - Apps,Advertising&mkting (non-staff),07-May-22,2223/02,LGE,N,
360128,ARCHANT COMMUNITY MEDIA LTD,505.24,Devt Management - Apps,Advertising&mkting (non-staff),21-May-22,2223/02,LGE,N,
359649,MITIE PROPERTY SERVICES (UK) LTD,"11,623.79",Planned Maint - Ext Painting,Major Contracts,28-Apr-22,2223/02,SME,N,
360176,EVERYONE ACTIVE STOWMARKET,"1,315.30",Holiday Activity Fund,"Equipment, Tools & Materials",23-May-22,2223/02,SME,N,
359684,IPSWICH BOROUGH COUNCIL,"1,500.00",Management Team,Prof & Consultancy Fees,28-Apr-22,2223/02,LGE,Y,50%
359420,SERCO LTD,"7,869.69",Open Spaces,Plant & Vehicle Fuel,07-Apr-22,2223/02,LGE,Y,50%
359875,SERCO LTD,510.88,Domestic Waste,Refuse Contract,26-Apr-22,2223/02,LGE,N,
359876,SERCO LTD,"8,075.33",Domestic Waste,Refuse Contract,06-May-22,2223/02,LGE,Y,50%
359877,SERCO LTD,"292,516.56",Domestic Waste,Refuse Contract,06-May-22,2223/02,LGE,Y,48%
359877,SERCO LTD,"77,664.58",Garden Waste,Refuse Contract,06-May-22,2223/02,LGE,Y,48%
359877,SERCO LTD,"22,179.86",Trade Waste,Refuse Contract,06-May-22,2223/02,LGE,Y,60%
359878,SERCO LTD,"4,377.00",Domestic Waste,Refuse Contract,06-May-22,2223/02,LGE,Y,50%
359993,TRAVIS PERKINS TRADING CO LTD,"53,387.03",Building Services,"Equipment, Tools & Materials",30-Apr-22,2223/02,LGE,Y,60%
360160,RURAL COFFEE CARAVAN INFORMATION PROJECT,"10,000.00",Grants & Contrbns,Grants,25-May-22,2223/02,SME,N,
360075,ERNST & YOUNG LLP,"9,610.00",Ext Audit,Audit Fees,11-May-22,2223/02,LGE,N,
422595,GPC BARCLAYS,"6,523.19",Current Assets,Barclaycard Control,14-May-22,2223/02,LGE,Y,7%
422586,ALLSTAR BUSINESS SOLUTIONS LTD,97.5,Housing Options,Plant & Vehicle Fuel,30-Apr-22,2223/02,SME,Y,50%
422586,ALLSTAR BUSINESS SOLUTIONS LTD,"10,578.22",Building Services,Plant & Vehicle Fuel,30-Apr-22,2223/02,SME,Y,50%
359823,STANNAH STAIRLIFTS LTD,"3,391.00",Tenancy Services,Repairs,20-Sep-21,2223/02,LGE,N,
359874,STANNAH STAIRLIFTS LTD,"6,153.00",Council House Adaptions,Improvements,31-Mar-22,2223/02,LGE,N,
422605,COMPUTERSHARE ,"1,033.00",Current Assets,ChildCare Vouchers-Control,26-May-22,2223/02,LGE,N,
360187,ASSOCIATION FOR SUFFOLK MUSEUMS,"1,500.00",Grants & Contrbns,Grants,25-May-22,2223/02,SME,N,
360023,BACTON PARISH COUNCIL,"1,000.00",Grants & Contrbns,Contributions & Donations,17-May-22,2223/02,SME,N,
359646,BOTESDALE PARISH COUNCIL,"2,000.00",Grants & Contrbns,Contributions & Donations,28-Apr-22,2223/02,SME,N,
359702,BRAMFORD PARISH COUNCIL,"1,000.00",Grants & Contrbns,Grants,29-Apr-22,2223/02,SME,N,
360032,DEBENHAM PARISH COUNCIL,800,Grants & Contrbns,Contributions & Donations,17-May-22,2223/02,SME,N,
359567,DEBENHAM VILLAGE HALL & PLAYING FIELD TR,"1,958.88",Community Fund Projects-Grants,Grants,26-Apr-22,2223/02,SME,N,
359574,DEBENHAM VILLAGE HALL & PLAYING FIELD TR,428,Suffolk Community Restart Fund,Grants,26-Apr-22,2223/02,SME,N,
360174,DEBENHAM VILLAGE HALL & PLAYING FIELD TR,"13,750.00",Grants & Contrbns,Grants,25-May-22,2223/02,SME,N,
360102,DENHAM PARISH COUNCIL,"2,740.00",Community Fund Projects-Grants,Grants,20-May-22,2223/02,SME,N,
360143,DENHAM PARISH COUNCIL,"2,800.71",S106 Open Spaces Expenditure,Grants,24-May-22,2223/02,SME,N,
360157,EAST ANGLIAN TRADITIONAL MUSIC TRUST,"2,000.00",Grants & Contrbns,Grants,25-May-22,2223/02,SME,N,
360159,EASTERN ANGLES THEATRE CO LTD,"1,000.00",Grants & Contrbns,Grants,25-May-22,2223/02,SME,N,
360027,ELMSWELL PARISH COUNCIL,500,Grants & Contrbns,Contributions & Donations,17-May-22,2223/02,SME,N,
360037,FINNINGHAM PARISH COUNCIL,"1,200.00",Grants & Contrbns,Contributions & Donations,17-May-22,2223/02,SME,N,
422582,FRAMSDEN PARISH COUNCIL,517.94,Bring Sites,Contributions & Donations,06-May-22,2223/02,SME,N,
360026,GISLINGHAM PARISH COUNCIL,600,Grants & Contrbns,Contributions & Donations,17-May-22,2223/02,SME,N,
360184,HOME -START MID SUFFOLK,"4,000.00",Grants & Contrbns,Grants,25-May-22,2223/02,SME,N,
360166,LIGHTHOUSE WOMENS AID LTD,"3,000.00",Grants & Contrbns,Grants,25-May-22,2223/02,SME,N,
360185,MID SUFFOLK AXIS,"1,800.00",Grants & Contrbns,Grants,25-May-22,2223/02,SME,N,
359690,MID SUFFOLK VOLUNTARY ORGANISATIONS FORU,"1,000.00",Grants & Contrbns,Grants,29-Apr-22,2223/02,SME,N,
359654,PALGRAVE PARISH COUNCIL,350,Grants & Contrbns,Contributions & Donations,28-Apr-22,2223/02,SME,N,
360162,STREET FORGE WORKSHOPS,"2,500.00",Grants & Contrbns,Grants,25-May-22,2223/02,SME,N,
360161,SUFFOLK ACCIDENT RESCUE SERVICE,"1,000.00",Grants & Contrbns,Grants,25-May-22,2223/02,SME,N,
360163,SUFFOLK ARTLINK,"2,550.00",Grants & Contrbns,Grants,25-May-22,2223/02,SME,N,
360158,SUFFOLK WEST CITIZENS ADVICE BUREAU,"5,460.00",Grants & Contrbns,Grants,25-May-22,2223/02,SME,N,
360025,THORNHAM PARVA PARISH MEETING,550,Grants & Contrbns,Contributions & Donations,17-May-22,2223/02,SME,N,
359588,THORNHAM PARISH HALL,800,Grants & Contrbns,Grants,26-Apr-22,2223/02,SME,N,
422584,THURSTON PARISH COUNCIL,645.3,Bring Sites,Contributions & Donations,06-May-22,2223/02,SME,N,
359648,WORLINGWORTH COMMUNITY CENTRE COMMITTEE,800,Grants & Contrbns,Contributions & Donations,28-Apr-22,2223/02,SME,N,
359994,SUFFOLK COUNTY COUNCIL,"1,590.00",Land Chgs,Contracted Services,13-May-22,2223/02,LGE,N,
360059,SUFFOLK COUNTY COUNCIL,"1,786.68",Communications,Recruitment,17-May-22,2223/02,LGE,Y,50%
360061,SUFFOLK COUNTY COUNCIL,"6,714.30",Jnt Waste Contract,Subscriptions,18-May-22,2223/02,LGE,N,
359748,FENN WRIGHT LLP,900,General/Supervision & Mgmt,Prof & Consultancy Fees,27-Apr-22,2223/02,SME,N,
359688,BACTON BOWLS CLUB,755.52,Suffolk Community Restart Fund,Grants,29-Apr-22,2223/02,SME,N,
360256,STOWMARKET TOWN COUNCIL,"10,000.00",Community Safety-General,"Equipment, Tools & Materials",27-May-22,2223/02,SME,N,
360254,TELEFONICA UK LIMITED - O2,"1,366.84",ICT,Telephone Costs,27-May-22,2223/02,LGE,Y,50%
360123,KENNET EQUIPMENT LEASING,283.05,Creeting Rd Depot,Operating Lease Payments,23-May-22,2223/02,SME,Y,50%
359970,ZURICH MUNICIPAL,390,Footpaths,Prof & Consultancy Fees,03-May-22,2223/02,LGE,N,
359970,ZURICH MUNICIPAL,"2,317.00",Open Spaces,Miscellaneous Insurance Excess,03-May-22,2223/02,LGE,N,
359971,ZURICH MUNICIPAL,"5,000.00",Building Services,Premises Insurance Excess,03-May-22,2223/02,LGE,N,
359910,CYCLESCHEME LTD,582.5,Current Assets,Cycling Scheme,11-May-22,2223/02,SME,N,
360156,MID SUFFOLK CITIZENS ADVICE BUREAU,"23,875.00",Grants & Contrbns,Grants,25-May-22,2223/02,SME,N,
359805,ERNEST DOE & SONS LTD,"3,256.03",Open Spaces,"Equipment, Tools & Materials",12-Apr-22,2223/02,LGE,N,
358847,WHYBROW PROPERTY SOLUTIONS LTD,"3,483.74",Building Services,Repairs,18-Mar-22,2223/02,SME,N,
359143,WHYBROW PROPERTY SOLUTIONS LTD,"8,358.00",Building Services,Repairs,04-Apr-22,2223/02,SME,N,
359282,WHYBROW PROPERTY SOLUTIONS LTD,"1,759.00",Building Services,Repairs,08-Apr-22,2223/02,SME,N,
359512,WHYBROW PROPERTY SOLUTIONS LTD,741,Building Services,Repairs,22-Apr-22,2223/02,SME,N,
359657,WHYBROW PROPERTY SOLUTIONS LTD,"12,000.00",Building Services,Repairs,28-Apr-22,2223/02,SME,N,
360105,WHYBROW PROPERTY SOLUTIONS LTD,516,Building Services,Repairs,20-May-22,2223/02,SME,N,
360119,WHYBROW PROPERTY SOLUTIONS LTD,"2,456.99",Council House Adaptions,Improvements,20-May-22,2223/02,SME,N,
358987,L A C CLEANING CONTRACTORS LIMITED,84.5,Homeless Prevention Fund,Misc Supplies & Services Costs,28-Mar-22,2223/02,SME,N,
358987,L A C CLEANING CONTRACTORS LIMITED,169,Homelessness Private Sector,Misc Supplies & Services Costs,28-Mar-22,2223/02,SME,N,
360192,L A C CLEANING CONTRACTORS LIMITED,824.41,Temporary Accommodation,General Cleaning,24-May-22,2223/02,SME,N,
360136,BRITISH PARKING ASSOCIATION,681,C Parks General,Subscriptions,17-May-22,2223/02,SME,Y,50%
359715,ARMSTRONG YORK ASBESTOS ENVIRONMENTAL,"5,678.29",Asbestos Survey & Reinspection,Prof & Consultancy Fees,31-Mar-22,2223/02,SME,N,
360062,ARMSTRONG YORK ASBESTOS ENVIRONMENTAL,"2,993.35",Asbestos Survey & Reinspection,Prof & Consultancy Fees,29-Apr-22,2223/02,SME,N,
359590,"ONEHOUSE, HARLESTON & SHELLAND VH & PFT","1,000.00",Grants & Contrbns,Grants,26-Apr-22,2223/02,SME,N,
360053,THE MIX STOWMARKET LTD,543,Holiday Activity Fund,"Equipment, Tools & Materials",18-May-22,2223/02,SME,N,
360054,THE MIX STOWMARKET LTD,724,Holiday Activity Fund,"Equipment, Tools & Materials",18-May-22,2223/02,SME,N,
360057,THE MIX STOWMARKET LTD,"1,448.00",Holiday Activity Fund,"Equipment, Tools & Materials",18-May-22,2223/02,SME,N,
360188,THE MIX STOWMARKET LTD,"7,500.00",Grants & Contrbns,Grants,25-May-22,2223/02,SME,N,
359809,STOWE VETERINARY GROUP,308.7,Animal Welfare Licensing,Prof & Consultancy Fees,05-May-22,2223/02,SME,N,
360098,COMMUNITY ACTION SUFFOLK,"2,803.16",Community Housing Fund,Grants,20-May-22,2223/02,SME,N,
360100,COMMUNITY ACTION SUFFOLK,"2,670.24",Community Housing Fund,Grants,20-May-22,2223/02,SME,N,
360167,COMMUNITY ACTION SUFFOLK,"5,000.00",Grants & Contrbns,Grants,25-May-22,2223/02,SME,N,
359540,OXBURY CHARTERED SURVEYORS,"1,800.00","The Broadway, Badwell Ash",Prof & Consultancy Fees,28-Feb-22,2223/02,SME,N,
359685,OXBURY CHARTERED SURVEYORS,"1,800.00","The Broadway, Badwell Ash",Prof & Consultancy Fees,29-Apr-22,2223/02,SME,N,
359681,OPUS PEOPLE SOLUTIONS LTD,89.97,Governance,Agency Staff,14-Apr-22,2223/02,SME,N,
359681,OPUS PEOPLE SOLUTIONS LTD,288.49,Domestic Waste,Agency Staff,14-Apr-22,2223/02,SME,N,
359682,OPUS PEOPLE SOLUTIONS LTD,181.9,Governance,Agency Staff,21-Apr-22,2223/02,SME,N,
359682,OPUS PEOPLE SOLUTIONS LTD,863.2,Homeless Prevention Fund,Agency Staff,21-Apr-22,2223/02,SME,N,
359682,OPUS PEOPLE SOLUTIONS LTD,93.54,Domestic Waste,Agency Staff,21-Apr-22,2223/02,SME,N,
359683,OPUS PEOPLE SOLUTIONS LTD,101.45,Governance,Agency Staff,28-Apr-22,2223/02,SME,N,
359683,OPUS PEOPLE SOLUTIONS LTD,431.6,Homeless Prevention Fund,Agency Staff,28-Apr-22,2223/02,SME,N,
360009,OPUS PEOPLE SOLUTIONS LTD,722.93,Homeless Prevention Fund,Agency Staff,12-May-22,2223/02,SME,N,
360281,OPUS PEOPLE SOLUTIONS LTD,86.42,Governance,Agency Staff,26-May-22,2223/02,SME,N,
360281,OPUS PEOPLE SOLUTIONS LTD,431.6,Homeless Prevention Fund,Agency Staff,26-May-22,2223/02,SME,N,
360281,OPUS PEOPLE SOLUTIONS LTD,213.65,Housing Standards,Agency Staff,26-May-22,2223/02,SME,N,
360107,VERTAS GROUP LTD,"1,440.00",Unapportionable Central OHs,Security Systems,30-Apr-22,2223/02,SME,N,
359825,4PRINCIPLES CONSTRUCTION LTD,"6,857.18",Mand Disabled Facilities Grant,Grants,09-May-22,2223/02,SME,N,
359652,BIRKETTS LLP,"1,830.00",Organisational Devt,Legal Expenses,02-Mar-22,2223/02,LGE,Y,50%
359962,GALLAGHER CAR & VAN RENTALS LTD,"1,232.00",Jnt Waste Contract,Refuse Contract,13-May-22,2223/02,LGE,N,
359964,GALLAGHER CAR & VAN RENTALS LTD,"1,400.00",Jnt Waste Contract,Refuse Contract,13-May-22,2223/02,LGE,N,
359921,FORESOLUTIONS LTD,254.38,Open Spaces,Plant & Vehicle - Other costs,08-May-22,2223/02,SME,N,
359653,EARL STONHAM VILLAGE HALL,700,Grants & Contrbns,Contributions & Donations,28-Apr-22,2223/02,SME,N,
359655,YAXLEY COMMUNITY CENTRE,285,Grants & Contrbns,Contributions & Donations,28-Apr-22,2223/02,SME,N,
359906,OCEAN MEDIA GROUP LTD,875,General/Supervision & Mgmt,Subscriptions,09-May-22,2223/02,SME,Y,50%
359750,RICHARD UTTING ASSOCIATES LLP,"1,293.23","Green Road, Woolpit",Prof & Consultancy Fees,30-Apr-22,2223/02,SME,N,
359777,RICHARD UTTING ASSOCIATES LLP,"2,124.75",Stowmarket Middle School,Prof & Consultancy Fees,30-Apr-22,2223/02,SME,N,
359778,RICHARD UTTING ASSOCIATES LLP,"1,787.20",Needham Market Middle School,Prof & Consultancy Fees,30-Apr-22,2223/02,SME,N,
359789,RICHARD UTTING ASSOCIATES LLP,"1,637.42","Back Hills, Botesdale, S106",Prof & Consultancy Fees,31-Mar-22,2223/02,SME,N,
359812,RICHARD UTTING ASSOCIATES LLP,"2,055.00",Eves Meadow Haughley S106,Prof & Consultancy Fees,03-May-22,2223/02,SME,N,
360085,ASPECT CONTRACTS LTD,"1,035.00",Asbestos,Improvements,19-May-22,2223/02,LGE,N,
359891,BEESTONS (HADLEIGH) LTD,675,Economy & Business,Misc Supplies & Services Costs,21-Apr-22,2223/02,SME,N,
360092,THE OFFSHOOT FOUNDATION,"2,980.00",Holiday Activity Fund,"Equipment, Tools & Materials",19-May-22,2223/02,SME,N,
422599,RIX PETROLEUM (EAST ANGLIA) LTD,"10,291.40",Open Spaces,Plant & Vehicle Fuel,04-May-22,2223/02,SME,N,
360048,HOUSING FINANCE ASSOCIATES LTD,"6,592.00",General/Supervision & Mgmt,Contracted Services,18-May-22,2223/02,SME,Y,50%
359855,VIVID RESOURCING,"1,710.00",Business Cont/Emergency Plan,Contracted Services,04-May-22,2223/02,SME,Y,50%
359880,VIVID RESOURCING,"1,710.00",Business Cont/Emergency Plan,Contracted Services,10-May-22,2223/02,SME,Y,50%
360058,VIVID RESOURCING,"2,280.00",Business Cont/Emergency Plan,Contracted Services,18-May-22,2223/02,SME,Y,50%
360186,VIVID RESOURCING,"2,280.00",Business Cont/Emergency Plan,Contracted Services,25-May-22,2223/02,SME,Y,50%
359514,GIPPING OCCUPATIONAL HEALTH LTD,275,Organisational Devt,Contracted Services,07-Apr-22,2223/02,SME,Y,50%
360067,RESIDENTIALLY CHARTERED SURVEYORS,700,Needham HQ S106 Units,Prof & Consultancy Fees,12-May-22,2223/02,SME,N,
360007,TOP FLOORS (EAST ANGLIA) LTD,841.15,Building Services,Repairs,11-May-22,2223/02,SME,N,
360008,TOP FLOORS (EAST ANGLIA) LTD,815.02,Building Services,Repairs,11-May-22,2223/02,SME,N,
360171,HOME-START IN SUFFOLK,"9,000.00",Grants & Contrbns,Grants,25-May-22,2223/02,SME,N,
360190,RATTLESDEN COMMUNITY COUNCIL,"11,311.87",Community Wellbeing,Grants,25-May-22,2223/02,SME,N,
359756,PORTAL PLAN QUEST LTD,"6,116.00",Devt Management - Apps,Planning Fees,09-May-22,2223/02,SME,N,
359817,PORTAL PLAN QUEST LTD,462,Devt Management - Apps,Planning Fees,10-May-22,2223/02,SME,N,
359553,CALL POINT FIRE LTD,461.95,Sheltered Accommodation,Fire Prevention,22-Mar-22,2223/02,SME,N,
359788,SOLACE IN BUSINESS,"11,400.00",Bus Imp (Corp),Agency Staff,30-Apr-22,2223/02,SME,Y,50%
360149,HAMSON BARRON SMITH LTD,540,Regen Fund,Prof & Consultancy Fees,28-Feb-22,2223/02,LGE,N,
359764,A C LEIGH (NORWICH) LTD,257.04,Building Services,"Equipment, Tools & Materials",29-Apr-22,2223/02,SME,N,
359919,A C LEIGH (NORWICH) LTD,"1,029.02",Building Services,"Equipment, Tools & Materials",05-May-22,2223/02,SME,N,
359999,A C LEIGH (NORWICH) LTD,291.48,Building Services,"Equipment, Tools & Materials",11-May-22,2223/02,SME,N,
360095,A C LEIGH (NORWICH) LTD,258.6,Building Services,"Equipment, Tools & Materials",18-May-22,2223/02,SME,N,
359663,SUFFOLK POWER EQUIPMENT,330,Open Spaces,Plant & Vehicle - Other costs,28-Apr-22,2223/02,ST,Y,50%
359664,SUFFOLK POWER EQUIPMENT,336.3,Open Spaces,Plant & Vehicle - Other costs,28-Apr-22,2223/02,ST,Y,50%
359665,SUFFOLK POWER EQUIPMENT,428.21,Open Spaces,Plant & Vehicle - Other costs,28-Apr-22,2223/02,ST,Y,50%
359666,SUFFOLK POWER EQUIPMENT,375,Open Spaces,Plant & Vehicle - Other costs,28-Apr-22,2223/02,ST,Y,50%
359667,SUFFOLK POWER EQUIPMENT,431.16,Open Spaces,Plant & Vehicle - Other costs,28-Apr-22,2223/02,ST,Y,50%
359668,SUFFOLK POWER EQUIPMENT,420,Open Spaces,Plant & Vehicle - Other costs,28-Apr-22,2223/02,ST,Y,50%
359669,SUFFOLK POWER EQUIPMENT,476.16,Open Spaces,Plant & Vehicle - Other costs,28-Apr-22,2223/02,ST,Y,50%
359670,SUFFOLK POWER EQUIPMENT,476.16,Open Spaces,Plant & Vehicle - Other costs,28-Apr-22,2223/02,ST,Y,50%
359671,SUFFOLK POWER EQUIPMENT,514.17,Open Spaces,Plant & Vehicle - Other costs,28-Apr-22,2223/02,ST,Y,50%
359672,SUFFOLK POWER EQUIPMENT,420,Open Spaces,Plant & Vehicle - Other costs,28-Apr-22,2223/02,ST,Y,50%
359673,SUFFOLK POWER EQUIPMENT,498.17,Open Spaces,Plant & Vehicle - Other costs,28-Apr-22,2223/02,ST,Y,50%
359674,SUFFOLK POWER EQUIPMENT,340.94,Open Spaces,Plant & Vehicle - Other costs,28-Apr-22,2223/02,ST,Y,50%
359709,3 POINT PROPERTY MANAGEMENT LTD,675,Guaranteed Rent Scheme,Rent Payable,06-May-22,2223/02,SME,N,
422591,3 POINT PROPERTY MANAGEMENT LTD,895,Guaranteed Rent Scheme,Rent Payable,11-May-22,2223/02,SME,N,
422591,3 POINT PROPERTY MANAGEMENT LTD,"1,500.00",Guaranteed Rent Scheme,Misc Supplies & Services Costs,11-May-22,2223/02,SME,N,
359939,HUGHES TRADE,269.01,Other Temp Accommodation,Furniture,12-May-22,2223/02,LGE,N,
359947,HUGHES TRADE,269.01,Other Temp Accommodation,Furniture,12-May-22,2223/02,LGE,N,
359844,APTL ENTERPRISES LTD,540,Building Services,Repairs,09-May-22,2223/02,SME,N,
360035,APTL ENTERPRISES LTD,"5,790.00",PV Panels,Repairs,11-May-22,2223/02,SME,N,
359711,WASHCO LTD,363,Sheltered Accommodation,Plant Maintenance,29-Apr-22,2223/02,SME,N,
359729,WASHCO LTD,467,Sheltered Accommodation,"Equipment, Tools & Materials",01-May-22,2223/02,SME,N,
359485,ANGLIA COMMERCIAL FLOORING LTD,"1,097.64",Building Services,Repairs,20-Apr-22,2223/02,SME,N,
359486,ANGLIA COMMERCIAL FLOORING LTD,482.09,Building Services,Repairs,20-Apr-22,2223/02,SME,N,
359487,ANGLIA COMMERCIAL FLOORING LTD,662.75,Building Services,Repairs,20-Apr-22,2223/02,SME,N,
359489,ANGLIA COMMERCIAL FLOORING LTD,798.69,Building Services,Repairs,20-Apr-22,2223/02,SME,N,
359491,ANGLIA COMMERCIAL FLOORING LTD,482.09,Building Services,Repairs,20-Apr-22,2223/02,SME,N,
359522,ANGLIA COMMERCIAL FLOORING LTD,298.6,Building Services,Repairs,25-Apr-22,2223/02,SME,N,
359640,ANGLIA COMMERCIAL FLOORING LTD,371.15,Building Services,Repairs,26-Apr-22,2223/02,SME,N,
359642,ANGLIA COMMERCIAL FLOORING LTD,675.59,Building Services,Repairs,26-Apr-22,2223/02,SME,N,
359781,ANGLIA COMMERCIAL FLOORING LTD,396.49,Building Services,Repairs,03-Aug-21,2223/02,SME,N,
359782,ANGLIA COMMERCIAL FLOORING LTD,482.09,Building Services,Repairs,13-Oct-21,2223/02,SME,N,
360079,ANGLIA COMMERCIAL FLOORING LTD,396.79,Building Services,Repairs,19-May-22,2223/02,SME,N,
360134,EASTERN PLAY SERVICES LTD,"1,269.04",Needham Lake Vis Centre (CAP),"Equipment, Tools & Materials",18-May-22,2223/02,SME,N,
359616,GREENACRE RECRUITMENT LTD,930.8,Housing Standards,Agency Staff,27-Apr-22,2223/02,SME,Y,50%
359769,GREENACRE RECRUITMENT LTD,"1,119.99",Housing Standards,Agency Staff,04-May-22,2223/02,SME,Y,50%
359932,GREENACRE RECRUITMENT LTD,968.64,Housing Standards,Agency Staff,11-May-22,2223/02,SME,Y,50%
360047,GREENACRE RECRUITMENT LTD,"1,193.99",Housing Standards,Agency Staff,18-May-22,2223/02,SME,Y,50%
360181,GREENACRE RECRUITMENT LTD,"1,193.99",Housing Standards,Agency Staff,25-May-22,2223/02,SME,Y,50%
359705,MID SUFFOLK GROWTH LTD,"54,541.73",Regen Fund - HQ Sites,Prof & Consultancy Fees,28-Apr-22,2223/02,SME,N,
359706,MID SUFFOLK GROWTH LTD,"71,765.44",Needham HQ S106 Units,Purchase of Land & Buildings,29-Apr-22,2223/02,SME,N,
359940,MID SUFFOLK GROWTH LTD,"1,395,000.00",Regen Fund - HQ Sites,Major Contracts,10-May-22,2223/02,SME,N,
359569,THE CODDENHAM CENTRE,"16,236.08",Community Fund Projects-Grants,Grants,26-Apr-22,2223/02,SME,N,
359587,THE CODDENHAM CENTRE,"1,000.00",Grants & Contrbns,Grants,26-Apr-22,2223/02,SME,N,
359975,DEMOCRACY COUNTS LTD,"2,132.86",Electoral Registration,Returning Officer Fees,31-Jul-21,2223/02,SME,Y,50%
359816,PENTACO CONSTRUCTION LTD,"47,109.00",Stowmarket Middle School,Annual Bldg Maint Contracts,05-May-22,2223/02,SME,N,
359883,WILKS HEAD AND EVE LLP,"2,750.00",Financial Servs,Prof & Consultancy Fees,05-May-22,2223/02,SME,N,
359883,WILKS HEAD AND EVE LLP,"9,200.00",Financial Servs,Prof & Consultancy Fees,05-May-22,2223/02,SME,N,
359763,BRYAN LECOCHE LTD,"1,034.80",Open Spaces,Misc Supplies & Services Costs,04-May-22,2223/02,SME,N,
360076,GREGG BROWN PHOTOGRAPHY,285,Communications,Advertising&mkting (non-staff),19-May-22,2223/02,ST,N,
360113,LIMELEASE LTD,395,Guaranteed Rent Scheme,Rent Payable,23-May-22,2223/02,SME,N,
360066,NOVUS PROPERTY SOLUTIONS LTD,"15,270.00",Sheltered Units-Gen.Imp,Improvements,19-May-22,2223/02,LGE,N,
359808,BUCHER MUNICIPAL LTD,"1,738.39",Street & Major Road Cleansing,Plant & Vehicle - Other costs,05-May-22,2223/02,LGE,N,
359810,GIPPING CONSTRUCTION LTD,"32,008.00",Regen Fund - HQ Sites,Prof & Consultancy Fees,29-Apr-22,2223/02,SME,N,
359810,GIPPING CONSTRUCTION LTD,"419,042.00",Needham Market Middle School,Prof & Consultancy Fees,29-Apr-22,2223/02,SME,N,
359985,PRIVATE LANDLORD,786.5,Guaranteed Rent Scheme,Rent Payable,22-Mar-22,2223/02,ST,N,
360114,PRIVATE LANDLORD,786.5,Guaranteed Rent Scheme,Rent Payable,23-May-22,2223/02,ST,N,
360280,PAUL WRIGHT & CO,"2,750.00",Homeless Prevention Fund,Misc Supplies & Services Costs,30-May-22,2223/02,SME,N,
360268,AFFINITY HEALTH AT WORK LTD,"1,800.00",Organisational Devt,Training,27-May-22,2223/02,SME,Y,50%
360196,WHITESPACE CONSTRUCTION LTD,"3,398.99",Mand Disabled Facilities Grant,Grants,26-May-22,2223/02,SME,N,
359516,AMPLIS CONSTRUCTION LTD,"5,159.45","Fences, Gates and Walls",Improvements,22-Apr-22,2223/02,SME,N,
359713,SUFFOLK DOORS & WINDOWS LTD,"4,600.00",Roofing,Improvements,03-May-22,2223/02,SME,N,
422588,ASHTONS LEGAL,"7,494.00",Devt Management - Apps,Legal ex - Crt challenge relat,06-May-22,2223/02,LGE,N,
359707,PRIVATE LANDLORD,786.5,Guaranteed Rent Scheme,Rent Payable,06-May-22,2223/02,ST,N,
359936,COUNTRYSTYLE RECYCLING LTD,"4,633.84",Bring Sites,Contracted Services,30-Apr-22,2223/02,SME,N,
359946,COUNTRYSTYLE RECYCLING LTD,360,Trade Waste,Trade Waste Disposal,30-Apr-22,2223/02,SME,Y,50%
359755,BURGESS HOMES LTD,"1,625.18",Tenancy Services,Other Service Charges,03-May-22,2223/02,SME,N,
359723,DGL QUALITY MANAGEMENT LTD,870.76,Needham Market Middle School,Prof & Consultancy Fees,30-Apr-22,2223/02,SME,N,
359477,ARAN INSULATION LTD,"1,413.65",Insulation Imps,Improvements,21-Apr-22,2223/02,SME,N,
359634,ARAN INSULATION LTD,"5,072.64",Building Services,Repairs,28-Apr-22,2223/02,SME,N,
359938,ARAN INSULATION LTD,911.03,Insulation Imps,Improvements,12-May-22,2223/02,SME,N,
359721,ORWELL REMOVALS & STORAGE LTD,750,Homeless Prevention Fund,Removal Expenses,28-Apr-22,2223/02,SME,N,
359791,BLUESKY INTERNATIONAL LTD,"4,001.00",Open Spaces,Biodiversity Task Force,05-May-22,2223/02,SME,Y,50%
359712,IAN BOOTH CONSULTANT ENGINEER LTD,320,Strategic Assets,Prof & Consultancy Fees,29-Apr-22,2223/02,SME,N,
360093,STORM ENVIRONMENTAL LTD,"23,538.00",Bins,Bins,17-May-22,2223/02,SME,Y,50%
422585,DRISCOLL KINGSTON SOLICITORS,"1,847.52",Building Services,Legal Expenses,18-Feb-22,2223/02,SME,N,
359930,DAVID TOLSON PARTNERSHIP LTD,350,Tenancy Services,Prof & Consultancy Fees,11-Apr-22,2223/02,SME,Y,50%
359931,DAVID TOLSON PARTNERSHIP LTD,350,Tenancy Services,Prof & Consultancy Fees,10-May-22,2223/02,SME,Y,50%
360099,WORTHAM LAWN TENNIS CLUB,"13,978.66",Community Fund Projects-Grants,Grants,20-May-22,2223/02,SME,N,
360138,WORTHAM LAWN TENNIS CLUB,"1,000.00",S106 Open Spaces Expenditure,Grants,24-May-22,2223/02,SME,N,
359573,WALSHAM LE WILLOWS YOUTH FOOTBALL CLUB,800,Suffolk Community Restart Fund,Grants,26-Apr-22,2223/02,SME,N,
359620,THE LEADERSHIP FACTOR LTD T/A TLF RESEAR,500,Organisational Devt,Training,25-Apr-22,2223/02,SME,Y,50%
358286,SEH FRENCH LTD,"68,733.00",Needham Lake Vis Centre (CAP),Major Contracts,28-Feb-22,2223/02,SME,N,
360121,PRIVATE LANDLORD,669,Guaranteed Rent Scheme,Rent Payable,23-May-22,2223/02,ST,N,
359824,JACKSON LIFT SERVICES LTD,624.99,Sheltered Accommodation,Plant Maintenance,05-May-22,2223/02,LGE,N,
359429,WALNES LTD T/A WALNES SEEDS,350,Devt Management - Apps,Biodiversity Task Force,12-Apr-22,2223/02,SME,N,
359696,PRIVATE LANDLORD,650,Guaranteed Rent Scheme,Rent Payable,06-May-22,2223/02,ST,N,
360038,MK AUTOS MOT CENTRE LIMITED,400,Taxi & Private Hire Licensing,Contracted Services,30-Apr-22,2223/02,SME,N,
359650,BACTON UNITED 89 FOOTBALL CLUB,275,Grants & Contrbns,Contributions & Donations,28-Apr-22,2223/02,SME,N,
359593,THE BLOSSOM CHARITY,"1,279.60",Suffolk Community Restart Fund,Grants,26-Apr-22,2223/02,SME,N,
359770,J9 LTD T/A BARRIERS DIRECT,"2,425.50",RHSSF,Bins,18-Mar-22,2223/02,SME,N,
359708,PRIVATE LANDLORD,495,Guaranteed Rent Scheme,Rent Payable,06-May-22,2223/02,SME,N,
422603,SHJ HOMES LTD,279.36,Guaranteed Rent Scheme,Rent Payable,27-May-22,2223/02,SME,N,
360088,ABS HOME IMPROVEMENTS LTD,640,Renovation/Home Repair Grants,Grants,20-May-22,2223/02,SME,N,
360041,FOOTBALL FUN FACTORY (FRANCHISING) LTD,"1,260.00",Holiday Activity Fund,"Equipment, Tools & Materials",17-May-22,2223/02,SME,N,
359572,KING GEORGE PLAYING FIELD COMMITTEE,"7,231.72",Community Fund Projects-Grants,Grants,26-Apr-22,2223/02,SME,N,
360101,1ST CLAYDON SCOUT GROUP,"2,251.74",Community Fund Projects-Grants,Grants,20-May-22,2223/02,SME,N,
359428,PONT ENTERPRISES LTD,1,Tenancy Services,Other Service Charges,19-Apr-22,2223/02,SME,N,
359428,PONT ENTERPRISES LTD,"11,516.46",Tenancy Services,Other Service Charges,19-Apr-22,2223/02,SME,N,
359586,STOWMARKET CARNIVAL,"1,000.00",Grants & Contrbns,Grants,26-Apr-22,2223/02,SME,N,
360033,MAXIM SPORTS COACHING,360,Holiday Activity Fund,"Equipment, Tools & Materials",17-May-22,2223/02,SME,N,
360239,MOVEITCLEARITFINDITSTOREIT LTD,720,Homeless Prevention Fund,Removal Expenses,26-May-22,2223/02,SME,N,
422581,PRIVATE LANDLORD,"1,575.00",Rent Deposit Scheme,Misc Premises Costs,03-May-22,2223/02,ST,N,
360018,NEC SOFTWARE SOLUTIONS UK LTD,"15,073.55",ICT,Software Licences (Corporate) ,20-Apr-22,2223/02,LGE,Y,50%
360019,NEC SOFTWARE SOLUTIONS UK LTD,"1,005.78",ICT,Software Licences (Corporate) ,20-Apr-22,2223/02,LGE,Y,50%
359303,GTC INFRASTRUCTURE LTD,"14,422.44",Strategic Assets,Improvements,07-Apr-22,2223/02,LGE,N,
359710,QUILL & INKLING THEATRE CO LTD,430.1,BRRP-MarketTownVision&Invest,Prof & Consultancy Fees,29-Apr-22,2223/02,SME,N,
359754,IVY LEGAL LTD,750,Organisational Devt,Training,25-Apr-22,2223/02,SME,N,
359972,BEAVER BOXES,"2,500.00",Guaranteed Rent Scheme,Misc Supplies & Services Costs,13-May-22,2223/02,SME,N,
359973,BEAVER BOXES,"2,500.00",Guaranteed Rent Scheme,Misc Supplies & Services Costs,13-May-22,2223/02,SME,N,
359974,BEAVER BOXES,"2,500.00",Guaranteed Rent Scheme,Misc Supplies & Services Costs,13-May-22,2223/02,SME,N,
360126,BEAVER BOXES,670,Guaranteed Rent Scheme,Misc Supplies & Services Costs,23-May-22,2223/02,SME,N,
359594,SUFFOLK CRICKET BOARD LTD,"1,260.00",Suffolk Community Restart Fund,Grants,26-Apr-22,2223/02,SME,N,
359689,STOWMARKET CRICKET CLUB,"1,783.00",Suffolk Community Restart Fund,Grants,29-Apr-22,2223/02,SME,N,
359703,LIVABILITY,"1,000.00",Grants & Contrbns,Grants,29-May-22,2223/02,SME,N,
359841,FOX YARD BAR LTD,"2,500.00",Business Innovation Grants,Grants,09-May-22,2223/02,SME,N,
360264,NATURAL ENGLAND (SSCL),284,Stowmarket Middle School,Prof & Consultancy Fees,06-May-22,2223/02,LGE,N,
360238,THE CHEQUERS (GT BLAKENHAM) LTD,"2,667.00",Business Cont/Emergency Plan,Grants,19-May-22,2223/02,SME,N,
360137,HEART OF DISTILLERY SUFFOLK,"2,500.00",Business Innovation Grants,Grants,24-May-22,2223/02,SME,N,
360257,REDACTIVE EVENTS LTD,795,Management Team,Conference Expenses,27-May-22,2223/02,SME,Y,50%
360191,THE FOOD MUSEUM LTD,"10,000.00",Grants & Contrbns,Grants,25-May-22,2223/02,SME,N,
359698,WORKWEAR (EAST ANGLIA) LTD,-55.21,Bldg Regs Chargeable Serv,Protective clothing,07-Apr-22,2223/02,SME,Y,50%
360255,VIVID RESOURCING,"-1,710.00",Business Cont/Emergency Plan,Contracted Services,10-May-22,2223/02,SME,Y,50%
359762,A C LEIGH (NORWICH) LTD,-7.3,Building Services,"Equipment, Tools & Materials",12-Apr-22,2223/02,SME,N,
926,FLAGSHIP HOUSING GROUP LTD-RENT ACCOUNT,-190,Homeless Prevention Fund,Misc Supplies & Services Costs,23-May-22,2223/02,LGE,N,
EBC0046812,FLAGSHIP HOUSING GROUP LTD-RENT ACCOUNT,190,Current Assets,LLOYDS GENERAL PAYMENTS,24-May-22,2223/02,LGE,N,
422592,ANGLIAN WATER BUS (NAT) LTD T/A WAVE,49.8,"11 Market Place, Stowmarket",Water Rates - Metered,12-May-22,2223/02,LGE,N,
422592,ANGLIAN WATER BUS (NAT) LTD T/A WAVE,"-9,154.89",Creeting Rd Depot,Water Rates - Metered,12-May-22,2223/02,LGE,Y,50%
422592,ANGLIAN WATER BUS (NAT) LTD T/A WAVE,31.22,General/Supervision & Mgmt,Water Rates - Metered,12-May-22,2223/02,LGE,N,
422592,ANGLIAN WATER BUS (NAT) LTD T/A WAVE,134.06,Headquarters General,Water Rates - Metered,12-May-22,2223/02,LGE,N,
422592,ANGLIAN WATER BUS (NAT) LTD T/A WAVE,129.32,Open Spaces,Water Rates - Metered,12-May-22,2223/02,LGE,N,
422592,ANGLIAN WATER BUS (NAT) LTD T/A WAVE,776.08,Public Conveniences,Water Rates - Metered,12-May-22,2223/02,LGE,N,
422592,ANGLIAN WATER BUS (NAT) LTD T/A WAVE,4.07,Recycling Centre,Water Rates - Metered,12-May-22,2223/02,LGE,N,
422592,ANGLIAN WATER BUS (NAT) LTD T/A WAVE,4.07,Sewage Treatment Works,Water Rates - Metered,12-May-22,2223/02,LGE,N,
422592,ANGLIAN WATER BUS (NAT) LTD T/A WAVE,"2,069.43",Sheltered Accommodation,Water Rates - Metered,12-May-22,2223/02,LGE,N,
422592,ANGLIAN WATER BUS (NAT) LTD T/A WAVE,16.84,Tacon Close Eye TDP,Water Rates - Metered,12-May-22,2223/02,LGE,N,
422592,ANGLIAN WATER BUS (NAT) LTD T/A WAVE,16.78,Temporary Accommodation,Water Rates - Metered,12-May-22,2223/02,LGE,N,
422592,ANGLIAN WATER BUS (NAT) LTD T/A WAVE,36.6,Tenancy Services,Water Rates - Metered,12-May-22,2223/02,LGE,N,
422592,ANGLIAN WATER BUS (NAT) LTD T/A WAVE,25.86,Wingfield Barns,Water Rates - Metered,12-May-22,2223/02,LGE,N,
360276,AARON SERVICES LTD,"29,189.01",Planned Maint - Heating,Property Servicing,29-Apr-22,2223/03,SME,N,
360700,AARON SERVICES LTD,"29,189.01",Planned Maint - Heating,Property Servicing,31-May-22,2223/03,SME,N,
359908,AE WHITE SURFACING,"5,151.00",Council House Adaptions,Improvements,10-May-22,2223/03,SME,N,
360625,ANGLIAN WATER,"1,291.35",Sheltered Accommodation,Water Rates - Metered,07-Jun-22,2223/03,LGE,N,
360697,ANGLIAN WATER,795.08,Sheltered Accommodation,Water Rates - Metered,16-Jun-22,2223/03,LGE,N,
360768,APSE,"1,230.00",Food & Safety (General),Agency Staff,21-Jun-22,2223/03,LGE,Y,50%
360768,APSE,"1,230.00",Animal Welfare Licensing,Agency Staff,21-Jun-22,2223/03,LGE,Y,50%
360474,BOWER FULLER,791.23,Sheltered Accommodation,"Equipment, Tools & Materials",31-May-22,2223/03,SME,N,
360475,BOWER FULLER,"1,981.10",Sheltered Accommodation,Fire Prevention,31-May-22,2223/03,SME,N,
360476,BOWER FULLER,"1,618.00",Sheltered Accommodation,Fire Prevention,31-May-22,2223/03,SME,N,
360478,BOWER FULLER,268.58,Sheltered Accommodation,Fire Prevention,31-May-22,2223/03,SME,N,
360479,BOWER FULLER,357.1,Sheltered Accommodation,Repairs,31-May-22,2223/03,SME,N,
360485,BOWER FULLER,"11,358.60",Sheltered Units-Gen.Imp,Improvements,31-May-22,2223/03,SME,N,
360486,BOWER FULLER,"7,918.25",Sheltered Units-Gen.Imp,Improvements,31-May-22,2223/03,SME,N,
360590,BOWER FULLER,"2,983.20",Sheltered Accommodation,Fire Prevention,14-Jun-22,2223/03,SME,N,
360607,BUTTON & TURNER LTD,599.95,Open Spaces,Plant & Vehicle - Other costs,12-May-22,2223/03,SME,N,
360571,AQUASAMPLERS,765,Water Sampling,Sampling & Analysis,30-Apr-22,2223/03,SME,N,
360730,CENTRAL TYRE LTD,422.69,Open Spaces,Plant & Vehicle - Other costs,21-Jun-22,2223/03,SME,N,
360561,CHASSIS-CAB LTD,"1,131.42",Open Spaces,Plant & Vehicle - Other costs,10-Jun-22,2223/03,SME,N,
360132,D W ADAMS LTD,581,Building Services,Repairs,24-May-22,2223/03,SME,N,
360224,D W ADAMS LTD,"4,672.00",Council House Adaptions,Improvements,26-May-22,2223/03,SME,N,
360240,D W ADAMS LTD,273,Disabled Facilities (Revenue),Repairs,27-May-22,2223/03,SME,N,
360241,D W ADAMS LTD,622,Building Services,Repairs,27-May-22,2223/03,SME,N,
360312,D W ADAMS LTD,"4,701.00",Council House Adaptions,Improvements,31-May-22,2223/03,SME,N,
360550,D W ADAMS LTD,"1,509.00",Council House Adaptions,Improvements,10-Jun-22,2223/03,SME,N,
360552,D W ADAMS LTD,"3,955.00",Major Imps,Improvements,08-Jun-22,2223/03,SME,N,
360804,D W ADAMS LTD,260,Building Services,Repairs,24-Jun-22,2223/03,SME,N,
360488,DMA HEALTH AND SAFETY LTD,316,Kitchens/Bathrooms,Prof & Consultancy Fees,08-Jun-22,2223/03,SME,N,
360310,EAST ANGLIA CLEANING SERVICES LTD,451.47,Open Spaces,General Cleaning,31-May-22,2223/03,SME,N,
360393,EAST ANGLIA CLEANING SERVICES LTD,"1,489.71",Jnt Waste Contract,General Cleaning,31-May-22,2223/03,SME,Y,50%
360796,EAST OF ENGLAND LGA,"1,300.00",Organisational Devt,Legal Expenses,31-May-22,2223/03,SME,Y,50%
360820,EAST OF ENGLAND LGA,"10,007.03",Management Team,Subscriptions,13-Jun-22,2223/03,SME,N,
360720,CIVICA ELECTION SERVICES,"2,513.99",Electoral Registration,Returning Officer Fees,16-May-22,2223/03,LGE,N,
359643,ENGLISH SECURITY,41.2,Building Services,Fire Prevention,19-Apr-22,2223/03,SME,N,
359643,ENGLISH SECURITY,102.9,Creeting Rd Depot,Fire Prevention,19-Apr-22,2223/03,SME,Y,50%
359643,ENGLISH SECURITY,265.1,Other HRA Temp Accommodation,Fire Prevention,19-Apr-22,2223/03,SME,N,
359643,ENGLISH SECURITY,"2,073.25",Sheltered Accommodation,Fire Prevention,19-Apr-22,2223/03,SME,N,
359643,ENGLISH SECURITY,284.9,Temporary Accommodation,Fire Prevention,19-Apr-22,2223/03,SME,N,
359643,ENGLISH SECURITY,"2,566.45",Tenancy Services,Fire Prevention,19-Apr-22,2223/03,SME,N,
359643,ENGLISH SECURITY,128.75,Wingfield Barns,Fire Prevention,19-Apr-22,2223/03,SME,N,
360661,ENGLISH SECURITY,523.48,Building Services,Fire Prevention,13-Jun-22,2223/03,SME,N,
360809,ENGLISH SECURITY,976.07,Sheltered Accommodation,Fire Prevention,21-Jun-22,2223/03,SME,N,
360810,ENGLISH SECURITY,"2,992.11",Sheltered Accommodation,Fire Prevention,21-Jun-22,2223/03,SME,N,
360811,ENGLISH SECURITY,308.48,Sheltered Accommodation,Fire Prevention,21-Jun-22,2223/03,SME,N,
360300,ENVIROVENT LTD,460,Building Services,Repairs,31-May-22,2223/03,SME,N,
360549,ENVIROVENT LTD,460,Building Services,Repairs,07-Jun-22,2223/03,SME,N,
360654,ENVIROVENT LTD,460,Building Services,Repairs,14-Jun-22,2223/03,SME,N,
360776,ENVIROVENT LTD,460,Building Services,Repairs,17-Jun-22,2223/03,SME,N,
360795,ENVIROVENT LTD,460,Building Services,Repairs,21-Jun-22,2223/03,SME,N,
360808,ENVIROVENT LTD,460,Building Services,Repairs,22-Jun-22,2223/03,SME,N,
360117,FELLBRIDGE BUILDING SERVICES,"8,105.03",Building Services,Repairs,23-May-22,2223/03,SME,N,
360118,FELLBRIDGE BUILDING SERVICES,"13,463.89",Building Services,Repairs,23-May-22,2223/03,SME,N,
360219,FELLBRIDGE BUILDING SERVICES,459.96,Building Services,Repairs,26-May-22,2223/03,SME,N,
360223,FELLBRIDGE BUILDING SERVICES,383.46,Building Services,Repairs,26-May-22,2223/03,SME,N,
360311,FELLBRIDGE BUILDING SERVICES,"7,305.45",Major Imps,Improvements,31-May-22,2223/03,SME,N,
360505,FELLBRIDGE BUILDING SERVICES,"2,592.56",Building Services,Repairs,09-Jun-22,2223/03,SME,N,
360507,FELLBRIDGE BUILDING SERVICES,"18,981.55",Building Services,Repairs,09-Jun-22,2223/03,SME,N,
360508,FELLBRIDGE BUILDING SERVICES,"3,178.84",Building Services,Repairs,09-Jun-22,2223/03,SME,N,
360509,FELLBRIDGE BUILDING SERVICES,455.3,Building Services,Repairs,09-Jun-22,2223/03,SME,N,
360510,FELLBRIDGE BUILDING SERVICES,"2,177.13",Building Services,Repairs,09-Jun-22,2223/03,SME,N,
360653,FELLBRIDGE BUILDING SERVICES,"18,215.61",Building Services,Repairs,16-Jun-22,2223/03,SME,N,
360693,FELLBRIDGE BUILDING SERVICES,"7,956.56",Building Services,Repairs,20-Jun-22,2223/03,SME,N,
360775,FELLBRIDGE BUILDING SERVICES,"4,064.92",Building Services,Repairs,23-Jun-22,2223/03,SME,N,
360293,FORE-MOST GARAGE DOORS LTD,991.8,Building Services,Repairs,31-May-22,2223/03,SME,N,
360348,GB ADAPTIONS LTD,"4,893.00",Mand Disabled Facilities Grant,Grants,01-Jun-22,2223/03,SME,N,
360667,GHB ROOFING,"1,170.00",Major Imps,Improvements,31-May-22,2223/03,SME,N,
360668,GHB ROOFING,920,Building Services,Repairs,31-May-22,2223/03,SME,N,
360669,GHB ROOFING,"1,540.00",Building Services,Repairs,31-May-22,2223/03,SME,N,
360316,J NAREY & SONS,408.96,Open Spaces,Horticultural Purchases,21-Apr-22,2223/03,SME,N,
360797,KEYWAYS THE LOCKSMITHS LTD,572,Council House Adaptions,Improvements,24-Jun-22,2223/03,SME,N,
360258,M & H CIVIL ENGINEERING LTD,"1,387.60",Building Services,Repairs,23-May-22,2223/03,SME,N,
360599,M & H CIVIL ENGINEERING LTD,525.5,Building Services,Repairs,13-Jun-22,2223/03,SME,N,
360670,MALJON TIMBER PRESERVATION LTD,"2,246.00",Building Services,Repairs,17-Jun-22,2223/03,SME,N,
360465,MARRIOTT HOLDINGS LTD,"1,875.00",C Parks-Stowmarket Lorry Park,Rent Payable,24-Jun-22,2223/03,SME,N,
360445,MATERIAL CHANGE COMPOSTING LTD,466.62,Open Spaces,Waste Disposal,31-May-22,2223/03,LGE,N,
360040,MB TREES (EAST ANGLIA) LTD,680,Tenancy Services,Tree felling/maintenance,17-May-22,2223/03,SME,N,
360304,MB TREES (EAST ANGLIA) LTD,640,Sheltered Accommodation,Grounds & Site Maintenance,31-May-22,2223/03,SME,N,
360764,MB TREES (EAST ANGLIA) LTD,640,Public Tree Programme,Tree felling/maintenance,23-Jun-22,2223/03,SME,N,
360587,MERCURY BUILDING SERVICES LTD,480,Sheltered Accommodation,Repairs,13-Jun-22,2223/03,SME,N,
360183,MID SUFFOLK FENCING LTD,590,Building Services,Repairs,17-May-22,2223/03,SME,N,
360298,MIXBROW LTD,"15,958.16",Council House Adaptions,Improvements,09-Apr-22,2223/03,SME,N,
360591,NEEDHAM MARKET TOWN COUNCIL,"4,181.62",RHSSF,Misc Supplies & Services Costs,14-Jun-22,2223/03,SME,N,
359915,NORFOLK COUNTY COUNCIL,600,Open Spaces,Misc Supplies & Services Costs,28-Apr-22,2223/03,LGE,N,
359165,PLASUFIX LTD,"7,205.00",Major Imps,Improvements,31-Mar-22,2223/03,SME,N,
359165,PLASUFIX LTD,290,Building Services,Repairs,31-Mar-22,2223/03,SME,N,
360333,REID PLUMBING & HEATING CONTRACTORS LTD,"23,891.03",Central Heating,Major Contracts,01-Jun-22,2223/03,SME,N,
360441,REID PLUMBING & HEATING CONTRACTORS LTD,"8,796.56",Central Heating,Major Contracts,07-Jun-22,2223/03,SME,N,
360462,REID PLUMBING & HEATING CONTRACTORS LTD,"14,082.21",Central Heating,Major Contracts,08-Jun-22,2223/03,SME,N,
360621,REID PLUMBING & HEATING CONTRACTORS LTD,"9,489.55",Central Heating,Major Contracts,16-Jun-22,2223/03,SME,N,
360709,REID PLUMBING & HEATING CONTRACTORS LTD,"9,335.34",Central Heating,Major Contracts,20-Jun-22,2223/03,SME,N,
360737,REID PLUMBING & HEATING CONTRACTORS LTD,"10,674.66",Central Heating,Major Contracts,22-Jun-22,2223/03,SME,N,
360328,SACKERS LTD,"2,943.26",Building Services,Waste Disposal,31-May-22,2223/03,SME,Y,50%
359714,SEAGER HOME SOLUTIONS,"5,302.59",Kitchens/Bathrooms,Improvements,03-May-22,2223/03,SME,N,
360249,SEAGER HOME SOLUTIONS,"9,105.20",Building Services,Repairs,27-May-22,2223/03,SME,N,
360659,SEAGER HOME SOLUTIONS,"5,897.14",Building Services,Repairs,16-Jun-22,2223/03,SME,N,
360882,SEAGER HOME SOLUTIONS,"6,686.00",Mand Disabled Facilities Grant,Grants,28-Jun-22,2223/03,SME,N,
360207,SPALDINGS LTD,431.25,Environmental Protection,Contracted Services,25-May-22,2223/03,SME,N,
360208,SPALDINGS LTD,287.5,Environmental Protection,Contracted Services,25-May-22,2223/03,SME,N,
360209,SPALDINGS LTD,287.5,Environmental Protection,Contracted Services,25-May-22,2223/03,SME,N,
360210,SPALDINGS LTD,287.5,Environmental Protection,Contracted Services,25-May-22,2223/03,SME,N,
360455,SSI SCHAEFER LTD,"45,993.60",Bins,Bins,08-Jun-22,2223/03,SME,Y,50%
360554,SUDBURY OFFICE SUPPLIES,489.6,Policy & Strategy (H & W),Misc Supplies & Services Costs,07-Jun-22,2223/03,SME,Y,50%
360714,SUFFOLK POLICE & CRIME COMMISSIONER,"1,000.00",Homelessness Private Sector,Contributions to other Bodies,21-Jun-22,2223/03,LGE,N,
360270,TANKCHANGE LTD,345,Central Heating,Improvements,18-May-22,2223/03,SME,N,
360271,TANKCHANGE LTD,345,Central Heating,Improvements,18-May-22,2223/03,SME,N,
360272,TANKCHANGE LTD,420,Central Heating,Improvements,18-May-22,2223/03,SME,N,
360336,TANKCHANGE LTD,595,Central Heating,Improvements,18-May-22,2223/03,SME,N,
360342,TANKCHANGE LTD,420,Central Heating,Improvements,18-May-22,2223/03,SME,N,
360349,TANKCHANGE LTD,345,Central Heating,Improvements,18-May-22,2223/03,SME,N,
360366,TANKCHANGE LTD,345,Central Heating,Improvements,18-May-22,2223/03,SME,N,
360367,TANKCHANGE LTD,345,Central Heating,Improvements,18-May-22,2223/03,SME,N,
360368,TANKCHANGE LTD,"2,195.00",Central Heating,Improvements,18-May-22,2223/03,SME,N,
360395,TANKCHANGE LTD,375,Central Heating,Improvements,02-Jun-22,2223/03,SME,N,
360403,TANKCHANGE LTD,375,Central Heating,Improvements,02-Jun-22,2223/03,SME,N,
360265,TDT ENTERPRISES LTD,369.6,Temporary Accommodation,Repairs,25-May-22,2223/03,SME,N,
360762,THERMATECH,"1,240.00",Sheltered Accommodation,Fire Prevention,22-Jun-22,2223/03,SME,N,
359704,TRUCKEAST LTD,520.85,Open Spaces,Plant & Vehicle - Other costs,29-Apr-22,2223/03,LGE,N,
360421,TRUCKEAST LTD,574.19,Street & Major Road Cleansing,Plant & Vehicle - Other costs,06-Jun-22,2223/03,LGE,N,
360430,TRUCKEAST LTD,"1,142.64",Open Spaces,Plant & Vehicle - Other costs,07-Jun-22,2223/03,LGE,N,
360416,VISIT EAST ANGLIA LTD,"7,000.00",Tourism General,Sampling & Analysis,06-Jun-22,2223/03,SME,N,
360655,VODAFONE CORPORATE LTD,"1,601.58",ICT,Telephone Costs,23-Apr-22,2223/03,LGE,N,
360779,WINDIMAN LTD,300,Building Services,Repairs,23-Jun-22,2223/03,SME,N,
360780,WINDIMAN LTD,950,Major Imps,Improvements,23-Jun-22,2223/03,SME,N,
360781,WINDIMAN LTD,370,Building Services,Repairs,23-Jun-22,2223/03,SME,N,
360782,WINDIMAN LTD,"1,185.00",Window & Door Rplcmts,Improvements,23-Jun-22,2223/03,SME,N,
360299,WORKWEAR (EAST ANGLIA) LTD,810,Open Spaces,Protective clothing,17-May-22,2223/03,SME,N,
360413,WORKWEAR (EAST ANGLIA) LTD,256.59,Building Services,Protective clothing,16-May-22,2223/03,SME,Y,50%
360440,WORKWEAR (EAST ANGLIA) LTD,290.56,Open Spaces,Protective clothing,06-Jun-22,2223/03,SME,N,
360440,WORKWEAR (EAST ANGLIA) LTD,290.56,Street & Major Road Cleansing,Protective clothing,06-Jun-22,2223/03,SME,N,
360648,WORKWEAR (EAST ANGLIA) LTD,360.42,Building Services,Protective clothing,10-Jun-22,2223/03,SME,Y,50%
360295,ARCHANT COMMUNITY MEDIA LTD,531.5,Devt Management - Apps,Advertising&mkting (non-staff),28-May-22,2223/03,LGE,N,
360420,ARCHANT COMMUNITY MEDIA LTD,531.5,Devt Management - Apps,Advertising&mkting (non-staff),04-Jun-22,2223/03,LGE,N,
360422,ARCHANT COMMUNITY MEDIA LTD,584.03,Devt Management - Apps,Advertising&mkting (non-staff),14-May-22,2223/03,LGE,N,
360634,ARCHANT COMMUNITY MEDIA LTD,426.44,Devt Management - Apps,Advertising&mkting (non-staff),11-Jun-22,2223/03,LGE,N,
360716,ARCHANT COMMUNITY MEDIA LTD,715.36,Devt Management - Apps,Advertising&mkting (non-staff),18-Jun-22,2223/03,LGE,N,
360814,LOCAL GOVERNMENT ASSOCIATION,545,Governance,Conference Expenses,24-Jun-22,2223/03,LGE,N,
360297,BUILDBASE,253.8,Open Spaces,"Equipment, Tools & Materials",30-May-22,2223/03,LGE,N,
360631,IPSWICH BOROUGH COUNCIL,"11,057.74",Shared Revenues Partnership,Contributions to other Bodies,09-Jun-22,2223/03,LGE,N,
360632,IPSWICH BOROUGH COUNCIL,"14,619.00",Shared Revenues Partnership,Contributions to other Bodies,09-Jun-22,2223/03,LGE,N,
360727,IPSWICH BOROUGH COUNCIL,308,Shared Revenues Partnership,Contributions to other Bodies,15-Jun-22,2223/03,LGE,N,
360728,IPSWICH BOROUGH COUNCIL,"6,126.71",Shared Revenues Partnership,Contributions to other Bodies,14-Jun-22,2223/03,LGE,N,
360830,IPSWICH BOROUGH COUNCIL,"6,344.79",Shared Revenues Partnership,Contributions to other Bodies,24-Jun-22,2223/03,LGE,N,
360466,SERCO LTD,"4,587.00",Domestic Waste,Refuse Contract,27-May-22,2223/03,LGE,Y,50%
360467,SERCO LTD,"8,075.33",Jnt Waste Contract,Plant & Vehicle Fuel,27-May-22,2223/03,LGE,Y,50%
360468,SERCO LTD,"67,463.00",Domestic Waste,Refuse Contract,27-May-22,2223/03,LGE,Y,40%
360468,SERCO LTD,"75,805.00",Garden Waste,Refuse Contract,27-May-22,2223/03,LGE,Y,42%
360468,SERCO LTD,"1,065.00",Trade Waste,Refuse Contract,27-May-22,2223/03,LGE,Y,60%
360469,SERCO LTD,"317,527.76",Domestic Waste,Refuse Contract,27-May-22,2223/03,LGE,Y,47%
360469,SERCO LTD,"86,841.72",Garden Waste,Refuse Contract,27-May-22,2223/03,LGE,Y,48%
360469,SERCO LTD,"23,244.52",Trade Waste,Refuse Contract,27-May-22,2223/03,LGE,Y,60%
360723,SERCO LTD,"8,075.33",Jnt Waste Contract,Plant & Vehicle Fuel,06-Jun-22,2223/03,LGE,Y,50%
360724,SERCO LTD,"317,527.76",Domestic Waste,Refuse Contract,06-Jun-22,2223/03,LGE,Y,47%
360724,SERCO LTD,"86,841.72",Garden Waste,Refuse Contract,06-Jun-22,2223/03,LGE,Y,48%
360724,SERCO LTD,"23,244.52",Trade Waste,Refuse Contract,06-Jun-22,2223/03,LGE,Y,60%
360725,SERCO LTD,"4,587.00",Domestic Waste,Refuse Contract,06-Jun-22,2223/03,LGE,Y,50%
360637,TRAVIS PERKINS TRADING CO LTD,"3,648.35",Building Services,"Equipment, Tools & Materials",30-Apr-22,2223/03,LGE,Y,28%
360638,TRAVIS PERKINS TRADING CO LTD,"58,934.59",Building Services,"Equipment, Tools & Materials",31-May-22,2223/03,LGE,Y,68%
422613,EDF ENERGY,64.55,"11 Market Place, Stowmarket",Electricity,25-May-22,2223/03,LGE,N,
422613,EDF ENERGY,312.3,C Parks General,Electricity,25-May-22,2223/03,LGE,N,
422613,EDF ENERGY,27.19,Climate Change and Sustainabil,Electricity,25-May-22,2223/03,LGE,N,
422613,EDF ENERGY,634.94,Creeting Rd Depot,Electricity,25-May-22,2223/03,LGE,Y,50%
422613,EDF ENERGY,80.23,Needham Market Middle School,Electricity,25-May-22,2223/03,LGE,N,
422613,EDF ENERGY,45.87,Open Spaces,Electricity,25-May-22,2223/03,LGE,N,
422613,EDF ENERGY,437.38,Other HRA Temp Accommodation,Electricity,25-May-22,2223/03,LGE,N,
422613,EDF ENERGY,5.81,Recycling Centre,Electricity,25-May-22,2223/03,LGE,N,
422613,EDF ENERGY,225.33,Sewage Treatment Works,Electricity,25-May-22,2223/03,LGE,N,
422613,EDF ENERGY,"1,793.12",Sheltered Accommodation,Electricity,25-May-22,2223/03,LGE,N,
422613,EDF ENERGY,145.01,Tacon Close Eye TDP,Electricity,25-May-22,2223/03,LGE,N,
422613,EDF ENERGY,298.52,Temporary Accommodation,Electricity,25-May-22,2223/03,LGE,N,
422613,EDF ENERGY,748.5,Tenancy Services,Electricity,25-May-22,2223/03,LGE,N,
422613,EDF ENERGY,-13.78,Wingfield Barns,Electricity,25-May-22,2223/03,LGE,N,
360696,BRITISH GAS,696,General/Supervision & Mgmt,Electricity,13-Jun-22,2223/03,LGE,N,
422620,GPC BARCLAYS,"4,001.05",Current Assets,Barclaycard Control,14-Jun-22,2223/03,LGE,Y,10%
422606,ALLSTAR BUSINESS SOLUTIONS LTD,50.05,Housing Options,Plant & Vehicle Fuel,31-May-22,2223/03,SME,Y,50%
422606,ALLSTAR BUSINESS SOLUTIONS LTD,"9,987.11",Building Services,Plant & Vehicle Fuel,31-May-22,2223/03,SME,Y,50%
360355,STANNAH STAIRLIFTS LTD,"3,970.19",Stairlifts,Plant Maintenance,01-Jun-22,2223/03,LGE,N,
360290,DEBENHAM VILLAGE HALL & PLAYING FIELD TR,"5,542.66",Community Wellbeing,Grants,30-May-22,2223/03,SME,N,
360263,LAXFIELD PARISH COUNCIL,"1,510.00",Grants & Contrbns,Contributions & Donations,27-May-22,2223/03,SME,N,
360340,MID SUFFOLK VOLUNTARY ORGANISATIONS FORU,"2,100.00",Grants & Contrbns,Contributions & Donations,01-Jun-22,2223/03,SME,N,
360651,NEW ANGLIA LOCAL ENTERPRISE PARTNERSHIP,"7,000.00",Management Team,Advertising&mkting (non-staff),08-Jun-22,2223/03,SME,N,
360245,STOKE ASH AND THWAITE PARISH COUNCIL,"1,900.00",Grants & Contrbns,Contributions & Donations,27-May-22,2223/03,SME,N,
360243,WETHERDEN PARISH COUNCIL,"1,450.00",Grants & Contrbns,Contributions & Donations,27-May-22,2223/03,SME,N,
360338,WILBY PARISH COUNCIL,365.48,Grants & Contrbns,Contributions & Donations,01-Jun-22,2223/03,SME,N,
360406,WINGFIELD BARNS CIC,500,Holiday Activity Fund,"Equipment, Tools & Materials",23-May-22,2223/03,SME,N,
360247,WOOLPIT PARISH COUNCIL,500,Grants & Contrbns,Contributions & Donations,27-May-22,2223/03,SME,N,
359390,SUFFOLK COUNTY COUNCIL,"2,800.25",Organisational Devt,Advertising&mkting (non-staff),13-Apr-22,2223/03,LGE,Y,50%
359747,SUFFOLK COUNTY COUNCIL,"11,250.00",Endeavour House - HQ,Contracted Services,29-Apr-22,2223/03,LGE,Y,50%
360168,SUFFOLK COUNTY COUNCIL,"47,203.94",Trade Waste,Trade Waste Disposal,24-May-22,2223/03,LGE,N,
360169,SUFFOLK COUNTY COUNCIL,"9,787.83",Domestic Waste,MRF Disposal,24-May-22,2223/03,LGE,N,
360169,SUFFOLK COUNTY COUNCIL,"17,632.20",Garden Waste,Garden Waste Disposal,24-May-22,2223/03,LGE,N,
360195,SUFFOLK COUNTY COUNCIL,"15,000.00",Climate Change and Sustainabil,Contributions to other Bodies,20-May-22,2223/03,LGE,N,
360252,SUFFOLK COUNTY COUNCIL,"2,330.18",Organisational Devt,Recruitment,19-May-22,2223/03,LGE,Y,50%
360253,SUFFOLK COUNTY COUNCIL,594.05,Organisational Devt,Recruitment,19-May-22,2223/03,LGE,Y,50%
360306,SUFFOLK COUNTY COUNCIL,18.47,Organisational Devt,Recruitment,25-May-22,2223/03,LGE,Y,50%
360306,SUFFOLK COUNTY COUNCIL,"1,031.53",Organisational Devt,Advertising&mkting (non-staff),25-May-22,2223/03,LGE,Y,50%
360318,SUFFOLK COUNTY COUNCIL,"14,154.07",Community Safety-General,Contributions & Donations,23-May-22,2223/03,LGE,Y,50%
360432,SUFFOLK COUNTY COUNCIL,"1,250.00",Community Safety-General,Contributions & Donations,07-Jun-22,2223/03,LGE,N,
360539,SUFFOLK COUNTY COUNCIL,"1,420.00",Pre App Charging,Highways  Consultancy,09-Jun-22,2223/03,LGE,N,
360540,SUFFOLK COUNTY COUNCIL,"1,103.00",Pre App Charging,Prof & Consultancy Fees,09-Jun-22,2223/03,LGE,N,
360541,SUFFOLK COUNTY COUNCIL,"9,667.31",Domestic Waste,MRF Disposal,09-Jun-22,2223/03,LGE,N,
360541,SUFFOLK COUNTY COUNCIL,"20,949.51",Garden Waste,Garden Waste Disposal,09-Jun-22,2223/03,LGE,N,
360543,SUFFOLK COUNTY COUNCIL,"2,685.00",Pre App Charging,Highways  Consultancy,09-Jun-22,2223/03,LGE,N,
360575,SUFFOLK COUNTY COUNCIL,"1,985.00",Land Chgs,Contracted Services,10-Jun-22,2223/03,LGE,N,
360630,SUFFOLK COUNTY COUNCIL,"1,050.00",Taxi & Private Hire Licensing,Prof & Consultancy Fees,14-Jun-22,2223/03,LGE,N,
360688,SUFFOLK COUNTY COUNCIL,787.5,Organisational Devt,Misc Supplies & Services Costs,17-Jun-22,2223/03,LGE,Y,50%
360717,SUFFOLK COUNTY COUNCIL,300,Council House Adaptions,Improvements,20-Jun-22,2223/03,LGE,N,
360793,SUFFOLK COUNTY COUNCIL,"1,526.30",Organisational Devt,Recruitment,23-Jun-22,2223/03,LGE,Y,50%
360840,STOWMARKET TOWN COUNCIL,"13,004.99",RHSSF,Misc Supplies & Services Costs,27-Jun-22,2223/03,SME,N,
360819,TELEFONICA UK LIMITED - O2,"1,479.43",ICT,Telephone Costs,27-Jun-22,2223/03,LGE,Y,50%
360423,ZURICH MUNICIPAL,"4,685.00",Building Services,Premises Insurance Excess,31-May-22,2223/03,LGE,N,
422609,GAZPROM ENERGY,15.37,"11 Market Place, Stowmarket",Gas,18-May-22,2223/03,SME,N,
422609,GAZPROM ENERGY,163.93,Creeting Rd Depot,Gas,18-May-22,2223/03,SME,Y,50%
422609,GAZPROM ENERGY,27.95,Headquarters General,Gas,18-May-22,2223/03,SME,N,
422609,GAZPROM ENERGY,"18,174.51",Leisure Contract,Gas,18-May-22,2223/03,SME,N,
422609,GAZPROM ENERGY,15.37,Pure Gym & Adjacent Building,Gas,18-May-22,2223/03,SME,N,
422609,GAZPROM ENERGY,"5,305.54",Sheltered Accommodation,Gas,18-May-22,2223/03,SME,N,
422609,GAZPROM ENERGY,588.8,Temporary Accommodation,Gas,18-May-22,2223/03,SME,N,
422609,GAZPROM ENERGY,357.24,Tenancy Services,Gas,18-May-22,2223/03,SME,N,
422621,GAZPROM ENERGY,15.88,"11 Market Place, Stowmarket",Gas,17-Jun-22,2223/03,SME,N,
422621,GAZPROM ENERGY,126.1,Creeting Rd Depot,Gas,17-Jun-22,2223/03,SME,Y,50%
422621,GAZPROM ENERGY,28.88,Headquarters General,Gas,17-Jun-22,2223/03,SME,N,
422621,GAZPROM ENERGY,"11,835.58",Leisure Contract,Gas,17-Jun-22,2223/03,SME,N,
422621,GAZPROM ENERGY,"4,816.18",Sheltered Accommodation,Gas,17-Jun-22,2223/03,SME,N,
422621,GAZPROM ENERGY,146.47,Temporary Accommodation,Gas,17-Jun-22,2223/03,SME,N,
422621,GAZPROM ENERGY,169.51,Tenancy Services,Gas,17-Jun-22,2223/03,SME,N,
360635,INSTITUTE OF LICENSING LTD,310,Licensing Staff Costs,Professional Subs (Staff),09-Jun-22,2223/03,LGE,Y,50%
359806,ERNEST DOE & SONS LTD,859.66,Open Spaces,"Equipment, Tools & Materials",14-Apr-22,2223/03,LGE,N,
360460,ERNEST DOE & SONS LTD,"1,780.00",Building Services,Repairs,04-May-22,2223/03,LGE,Y,50%
359658,WHYBROW PROPERTY SOLUTIONS LTD,"21,045.95",Building Services,Repairs,28-Apr-22,2223/03,SME,Y,50%
360193,L A C CLEANING CONTRACTORS LIMITED,366.16,Temporary Accommodation,General Cleaning,24-May-22,2223/03,SME,N,
360555,ARMSTRONG YORK ASBESTOS ENVIRONMENTAL,"7,548.28",Asbestos Survey & Reinspection,Prof & Consultancy Fees,31-May-22,2223/03,SME,N,
360337,"ONEHOUSE, HARLESTON & SHELLAND VH & PFT",750,Grants & Contrbns,Contributions & Donations,01-Jun-22,2223/03,SME,N,
360262,THURSTON VILLAGE HALL  MANAGEMENT COMMIT,"1,200.00",Grants & Contrbns,Contributions & Donations,27-May-22,2223/03,SME,N,
360461,THE MIX STOWMARKET LTD,"1,085.99",Holiday Activity Fund,"Equipment, Tools & Materials",08-Jun-22,2223/03,SME,N,
360259,GT BLAKENHAM VILLAGE HALL FUND,"1,325.00",Grants & Contrbns,Contributions & Donations,27-May-22,2223/03,SME,N,
359912,1ST THURSTON SCOUT GROUP,480,Grants & Contrbns,Contributions & Donations,11-May-22,2223/03,SME,N,
359881,GRANICUS FIRMSTEP LIMITED,"26,599.50",ICT,Software Licences (Corporate) ,30-Apr-22,2223/03,SME,Y,50%
360415,OPUS PEOPLE SOLUTIONS LTD,453.18,Homeless Prevention Fund,Agency Staff,31-May-22,2223/03,SME,N,
360572,OPUS PEOPLE SOLUTIONS LTD,103.08,Governance,Agency Staff,09-Jun-22,2223/03,SME,N,
360572,OPUS PEOPLE SOLUTIONS LTD,431.6,Homeless Prevention Fund,Agency Staff,09-Jun-22,2223/03,SME,N,
360572,OPUS PEOPLE SOLUTIONS LTD,383.47,Housing Standards,Agency Staff,09-Jun-22,2223/03,SME,N,
360689,OPUS PEOPLE SOLUTIONS LTD,152.18,Governance,Agency Staff,16-Jun-22,2223/03,SME,N,
360689,OPUS PEOPLE SOLUTIONS LTD,485.55,Homeless Prevention Fund,Agency Staff,16-Jun-22,2223/03,SME,N,
360689,OPUS PEOPLE SOLUTIONS LTD,128.05,Housing Standards,Agency Staff,16-Jun-22,2223/03,SME,N,
360829,OPUS PEOPLE SOLUTIONS LTD,152.18,Governance,Agency Staff,23-Jun-22,2223/03,SME,N,
360829,OPUS PEOPLE SOLUTIONS LTD,172.64,Homeless Prevention Fund,Agency Staff,23-Jun-22,2223/03,SME,N,
360829,OPUS PEOPLE SOLUTIONS LTD,246.45,Housing Standards,Agency Staff,23-Jun-22,2223/03,SME,N,
360559,CORNERSTONE BARRISTERS,"3,500.00",Devt Management - Apps,Legal Expenses,10-Jun-22,2223/03,SME,N,
360498,VERTAS GROUP LTD,"1,440.00",Assets & Development,Security Systems,31-May-22,2223/03,SME,N,
360792,UK CONTAINER MAINTENANCE LTD,"3,476.00",Jnt Waste Contract,"Equipment, Tools & Materials",21-Jun-22,2223/03,SME,N,
360553,GALLAGHER CAR & VAN RENTALS LTD,"1,232.00",Domestic Waste,Refuse Contract,10-Jun-22,2223/03,LGE,N,
360557,GALLAGHER CAR & VAN RENTALS LTD,"1,400.00",Domestic Waste,Refuse Contract,10-Jun-22,2223/03,LGE,N,
360504,OPINION RESEARCH SERVICES LTD,"20,912.50",Customer Servs,Contracted Services,09-Jun-22,2223/03,SME,Y,50%
360494,FORESOLUTIONS LTD,254.38,Open Spaces,Plant & Vehicle - Other costs,08-Jun-22,2223/03,SME,N,
360767,PENNA PLC,"1,390.00",Organisational Devt,Recruitment,31-May-22,2223/03,SME,Y,50%
360438,STREETMASTER (SOUTH WALES) LTD,"2,499.20",RHSSF,"Equipment, Tools & Materials",31-May-22,2223/03,SME,N,
360261,1ST MID SUFFOLK BOYS BRIGADE&GIRLS ASSOC,600,Grants & Contrbns,Contributions & Donations,27-May-22,2223/03,SME,N,
360838,CHEC PLANNING LTD,"4,503.58",Nghbrhd Plan Designations,Prof & Consultancy Fees,27-Jun-22,2223/03,SME,N,
358655,ADVANCE SUPPLIES,921.35,RoughSleepersInterventionYr3,Misc Supplies & Services Costs,11-Mar-22,2223/03,SME,N,
360490,RICHARD UTTING ASSOCIATES LLP,"2,124.74",Stowmarket Middle School,Prof & Consultancy Fees,31-May-22,2223/03,SME,N,
360493,RICHARD UTTING ASSOCIATES LLP,"1,787.20",Needham Market Middle School,Prof & Consultancy Fees,31-May-22,2223/03,SME,N,
360531,RICHARD UTTING ASSOCIATES LLP,"1,293.23","Green Road, Woolpit",Prof & Consultancy Fees,31-May-22,2223/03,SME,N,
360533,RICHARD UTTING ASSOCIATES LLP,"2,055.00",Eves Meadow Haughley S106,Prof & Consultancy Fees,31-May-22,2223/03,SME,N,
422615,HM COURTS & TRIBUNALS SERVICE,355,Planning Enforcement,Legal Expenses,01-May-22,2223/03,LGE,N,
422615,HM COURTS & TRIBUNALS SERVICE ,275,Tenancy Services,Legal Expenses,01-May-22,2223/03,LGE,N,
360226,PUBLIC SEWER SERVICES,271.51,Building Services,Repairs,24-May-22,2223/03,SME,N,
360741,PUBLIC SEWER SERVICES,350,Unadopted Drains & Sewers,Improvements,22-Jun-22,2223/03,SME,N,
360742,PUBLIC SEWER SERVICES,315.02,Sewage Treatment Works,Repairs,22-Jun-22,2223/03,SME,N,
360744,PUBLIC SEWER SERVICES,277.09,Building Services,Repairs,22-Jun-22,2223/03,SME,N,
360748,PUBLIC SEWER SERVICES,520,Building Services,Repairs,22-Jun-22,2223/03,SME,N,
360750,PUBLIC SEWER SERVICES,"1,557.21",Building Services,Repairs,22-Jun-22,2223/03,SME,N,
360753,PUBLIC SEWER SERVICES,469.33,Building Services,Repairs,22-Jun-22,2223/03,SME,N,
360731,SMARTSURVEY LTD,720,Capita System Support,Subscriptions,24-May-22,2223/03,SME,Y,50%
360358,THE STOWMARKET GLASS COMPANY LTD,316.63,Building Services,Repairs,19-May-22,2223/03,SME,N,
360362,THE STOWMARKET GLASS COMPANY LTD,467.7,Building Services,Repairs,31-May-22,2223/03,SME,N,
360568,ASPECT CONTRACTS LTD,"2,171.00",Asbestos,Improvements,31-May-22,2223/03,LGE,N,
360847,THE OYSTER PARTNERSHIP LTD,630,General/Supervision & Mgmt,Agency Staff,22-Jun-22,2223/03,SME,Y,50%
360848,THE OYSTER PARTNERSHIP LTD,630,General/Supervision & Mgmt,Agency Staff,22-Jun-22,2223/03,SME,Y,50%
422614,RIX PETROLEUM (EAST ANGLIA) LTD,"9,434.96",Open Spaces,Plant & Vehicle Fuel,02-Jun-22,2223/03,SME,N,
360636,M3 HOUSING,"3,070.00",Building Services,Software Licnse (Line of Bus) ,09-Jun-22,2223/03,SME,Y,50%
359914,VIVID RESOURCING,"2,280.00",Business Cont/Emergency Plan,Contracted Services,11-May-22,2223/03,SME,Y,50%
360296,VIVID RESOURCING,"2,280.00",Business Cont/Emergency Plan,Contracted Services,30-May-22,2223/03,SME,Y,50%
360629,VIVID RESOURCING,"2,280.00",Business Cont/Emergency Plan,Contracted Services,15-Jun-22,2223/03,SME,Y,50%
360754,VIVID RESOURCING,"1,710.00",Business Cont/Emergency Plan,Contracted Services,22-Jun-22,2223/03,SME,Y,50%
360442,NORTHUMBRIAN WATER LTD,"1,280.79",Sheltered Accommodation,Legionella Testing,07-Jun-22,2223/03,LGE,N,
360442,NORTHUMBRIAN WATER LTD,37.45,Tenancy Services,Legionella Testing,07-Jun-22,2223/03,LGE,N,
360656,GIPPING OCCUPATIONAL HEALTH LTD,490,Organisational Devt,Contracted Services,14-Jun-22,2223/03,SME,Y,50%
360831,GIPPING OCCUPATIONAL HEALTH LTD,351.6,Health & Safety,Contracted Services,24-Jun-22,2223/03,SME,N,
360497,PARK AVENUE RECRUITMENT LTD,"1,025.00",Devt Management - Apps,Prof & Consultancy Fees,19-Apr-22,2223/03,SME,Y,46%
360576,JOHN FORD GROUP LTD,"6,811.05",Mand Disabled Facilities Grant,Grants,13-Jun-22,2223/03,SME,N,
360182,TOP FLOORS (EAST ANGLIA) LTD,439.51,Building Services,Repairs,18-May-22,2223/03,SME,N,
360419,PORTAL PLAN QUEST LTD,462,Devt Management - Apps,Planning Fees,07-Jun-22,2223/03,SME,N,
360515,PORTAL PLAN QUEST LTD,462,Devt Management - Apps,Planning Fees,09-Jun-22,2223/03,SME,N,
360538,PORTAL PLAN QUEST LTD,462,Devt Management - Apps,Planning Fees,10-Jun-22,2223/03,SME,N,
360770,PORTAL PLAN QUEST LTD,462,Devt Management - Apps,Planning Fees,23-Jun-22,2223/03,SME,N,
360760,BELLWAY HOMES LIMITED (ESSEX DIVISION),"364,446.26",Eves Meadow Haughley S106,Prof & Consultancy Fees,20-Jun-22,2223/03,LGE,N,
359828,SUFFOLK POWER EQUIPMENT,984.25,Open Spaces,Plant & Vehicle - Other costs,09-May-22,2223/03,ST,N,
360012,SUFFOLK POWER EQUIPMENT,696.26,Open Spaces,Plant & Vehicle - Other costs,16-Apr-22,2223/03,ST,N,
360701,SUFFOLK POWER EQUIPMENT,788.57,Open Spaces,Plant & Vehicle - Other costs,18-Jun-22,2223/03,ST,N,
360396,3 POINT PROPERTY MANAGEMENT LTD,895,Guaranteed Rent Scheme,Rent Payable,06-Jun-22,2223/03,SME,N,
360424,3 POINT PROPERTY MANAGEMENT LTD,675,Guaranteed Rent Scheme,Rent Payable,07-Jun-22,2223/03,SME,N,
360458,ENSORS,"2,500.00",BMS Invest,Audit Fees,31-May-22,2223/03,SME,Y,50%
360140,DG ACCESSIBLE DESIGNS,929.01,Mand Disabled Facilities Grant,Grants,29-Apr-22,2223/03,SME,N,
360772,DG ACCESSIBLE DESIGNS,"1,772.72",Mand Disabled Facilities Grant,Grants,23-Jun-22,2223/03,SME,N,
359229,HUGHES TRADE,543.29,RoughSleepersInterventionYr3,Misc Supplies & Services Costs,07-Apr-22,2223/03,LGE,N,
360773,HUGHES TRADE,713.62,Other Temp Accommodation,Furniture,23-Jun-22,2223/03,LGE,N,
360623,APTL ENTERPRISES LTD,"1,735.00",PV Panels,Repairs,09-Jun-22,2223/03,SME,N,
360106,WASHCO LTD,292.16,Sheltered Accommodation,Repairs,20-May-22,2223/03,SME,N,
360377,WASHCO LTD,467,Sheltered Accommodation,"Equipment, Tools & Materials",01-Jun-22,2223/03,SME,N,
360672,PEOPLE FOCUSED TRAINING & SOLUTIONS LTD,300,Organisational Devt,Health & Safety Training,05-May-22,2223/03,ST,Y,50%
360522,ANGLIA COMMERCIAL FLOORING LTD,659.2,Building Services,Repairs,09-Jun-22,2223/03,SME,N,
360523,ANGLIA COMMERCIAL FLOORING LTD,496.89,Building Services,Repairs,09-Jun-22,2223/03,SME,N,
360524,ANGLIA COMMERCIAL FLOORING LTD,"1,091.96",Building Services,Repairs,09-Jun-22,2223/03,SME,N,
360525,ANGLIA COMMERCIAL FLOORING LTD,341.5,Building Services,Repairs,09-Jun-22,2223/03,SME,N,
360526,ANGLIA COMMERCIAL FLOORING LTD,496.89,Building Services,Repairs,09-Jun-22,2223/03,SME,N,
360528,ANGLIA COMMERCIAL FLOORING LTD,467.3,Building Services,Repairs,09-Jun-22,2223/03,SME,N,
360529,ANGLIA COMMERCIAL FLOORING LTD,489.49,Building Services,Repairs,09-Jun-22,2223/03,SME,N,
422617,ANGLIAN WATER BUS (NAT) LTD T/A WAVE,53.55,"11 Market Place, Stowmarket",Water Rates - Metered,13-Jun-22,2223/03,LGE,N,
422617,ANGLIAN WATER BUS (NAT) LTD T/A WAVE,32.26,General/Supervision & Mgmt,Water Rates - Metered,13-Jun-22,2223/03,LGE,N,
422617,ANGLIAN WATER BUS (NAT) LTD T/A WAVE,141.99,Headquarters General,Water Rates - Metered,13-Jun-22,2223/03,LGE,N,
422617,ANGLIAN WATER BUS (NAT) LTD T/A WAVE,130.22,Open Spaces,Water Rates - Metered,13-Jun-22,2223/03,LGE,N,
422617,ANGLIAN WATER BUS (NAT) LTD T/A WAVE,805.85,Public Conveniences,Water Rates - Metered,13-Jun-22,2223/03,LGE,N,
422617,ANGLIAN WATER BUS (NAT) LTD T/A WAVE,4.21,Recycling Centre,Water Rates - Metered,13-Jun-22,2223/03,LGE,N,
422617,ANGLIAN WATER BUS (NAT) LTD T/A WAVE,4.21,Sewage Treatment Works,Water Rates - Metered,13-Jun-22,2223/03,LGE,N,
422617,ANGLIAN WATER BUS (NAT) LTD T/A WAVE,"2,207.56",Sheltered Accommodation,Water Rates - Metered,13-Jun-22,2223/03,LGE,N,
422617,ANGLIAN WATER BUS (NAT) LTD T/A WAVE,17.3,Tacon Close Eye TDP,Water Rates - Metered,13-Jun-22,2223/03,LGE,N,
422617,ANGLIAN WATER BUS (NAT) LTD T/A WAVE,17.23,Temporary Accommodation,Water Rates - Metered,13-Jun-22,2223/03,LGE,N,
422617,ANGLIAN WATER BUS (NAT) LTD T/A WAVE,33.75,Tenancy Services,Water Rates - Metered,13-Jun-22,2223/03,LGE,N,
422617,ANGLIAN WATER BUS (NAT) LTD T/A WAVE,27.63,Wingfield Barns,Water Rates - Metered,13-Jun-22,2223/03,LGE,N,
360516,EASTERN PLAY SERVICES LTD,"5,000.00",Open Spaces,Repairs,09-Jun-22,2223/03,SME,N,
360352,GREENACRE RECRUITMENT LTD,"1,193.99",Housing Standards,Agency Staff,01-Jun-22,2223/03,SME,Y,50%
360470,GREENACRE RECRUITMENT LTD,516.32,Housing Standards,Agency Staff,08-Jun-22,2223/03,SME,Y,50%
360645,GREENACRE RECRUITMENT LTD,532.46,Housing Standards,Agency Staff,15-Jun-22,2223/03,SME,Y,50%
360735,GREENACRE RECRUITMENT LTD,"1,221.44",Housing Standards,Agency Staff,22-Jun-22,2223/03,SME,Y,50%
360489,QUADIENT UK LIMITED,344.97,Jnt Waste Contract,"Equipment, Tools & Materials",26-May-22,2223/03,LGE,Y,50%
360463,PENTACO CONSTRUCTION LTD,"74,302.00",Stowmarket Middle School,Annual Bldg Maint Contracts,07-Jun-22,2223/03,SME,N,
360495,ADVANCEDSCAPE LTD,"2,495.00",RHSSF,Bins,27-May-22,2223/03,SME,N,
360260,SOMERSHAM COMMUNITY PUB LTD,500,Grants & Contrbns,Contributions & Donations,27-May-22,2223/03,SME,N,
360205,GLASSTAP LIMITED,"1,790.00",Organisational Devt,Corporate Training,25-May-22,2223/03,SME,Y,50%
360615,THE KINETIC SCIENCE FOUNDATION,900,Holiday Activity Fund,"Equipment, Tools & Materials",30-May-22,2223/03,SME,N,
360616,THE KINETIC SCIENCE FOUNDATION,"1,500.00",Holiday Activity Fund,"Equipment, Tools & Materials",30-May-22,2223/03,SME,N,
360710,THE KINETIC SCIENCE FOUNDATION,"3,000.00",Holiday Activity Fund,"Equipment, Tools & Materials",20-Jun-22,2223/03,SME,N,
360574,HEADWAY UK LTD,620,Sheltered Accommodation,Fire Prevention,28-Mar-22,2223/03,SME,N,
359969,BUCHER MUNICIPAL LTD,509.71,Street & Major Road Cleansing,"Equipment, Tools & Materials",09-May-22,2223/03,LGE,N,
360431,BUCHER MUNICIPAL LTD,"2,491.50",Street & Major Road Cleansing,Plant & Vehicle - Other costs,07-Jun-22,2223/03,LGE,Y,50%
360556,BUCHER MUNICIPAL LTD,509.71,Street & Major Road Cleansing,"Equipment, Tools & Materials",09-Jun-22,2223/03,LGE,N,
360464,GIPPING CONSTRUCTION LTD,"16,492.72",Regen Fund - HQ Sites,Prof & Consultancy Fees,26-May-22,2223/03,SME,N,
360464,GIPPING CONSTRUCTION LTD,"215,919.27",Needham Market Middle School,Prof & Consultancy Fees,26-May-22,2223/03,SME,N,
360685,GIPPING CONSTRUCTION LTD,"16,224.27",Regen Fund - HQ Sites,Prof & Consultancy Fees,20-Jun-22,2223/03,SME,N,
360685,GIPPING CONSTRUCTION LTD,"212,404.73",Needham Market Middle School,Prof & Consultancy Fees,20-Jun-22,2223/03,SME,N,
360774,GOULD ADAPTIONS LTD,"3,921.60",Mand Disabled Facilities Grant,Grants,23-Jun-22,2223/03,SME,N,
360429,PRIVATE LANDLORD,271,Guaranteed Rent Scheme,Misc Supplies & Services Costs,07-Jun-22,2223/03,ST,N,
360679,PRIVATE LANDLORD,786.5,Guaranteed Rent Scheme,Rent Payable,20-Jun-22,2223/03,ST,N,
360212,AMPLIS CONSTRUCTION LTD,"1,813.06",Building Services,BMBS Repairs Work,12-May-22,2223/03,SME,N,
360563,PRIVATE LANDLORD,786.5,Guaranteed Rent Scheme,Rent Payable,13-Jun-22,2223/03,ST,N,
360417,COUNTRYSTYLE RECYCLING LTD,600,Trade Waste,Trade Waste Disposal,31-May-22,2223/03,SME,Y,50%
360443,COUNTRYSTYLE RECYCLING LTD,262,Trade Waste,Trade Waste Disposal,31-May-22,2223/03,SME,Y,50%
360444,COUNTRYSTYLE RECYCLING LTD,"5,107.31",Bring Sites,Contracted Services,31-May-22,2223/03,SME,N,
360643,BURGESS HOMES LTD,367,"Back Hills, Botesdale, S106",Major Contracts,16-Jun-22,2223/03,SME,N,
360388,DGL QUALITY MANAGEMENT LTD,870.76,Needham Market Middle School,Prof & Consultancy Fees,31-May-22,2223/03,SME,N,
360303,PERMISERV LIMITED,"1,094.00",Jnt Waste Contract,"Equipment, Tools & Materials",31-May-22,2223/03,SME,Y,50%
360077,ARAN INSULATION LTD,"6,911.62",Insulation Imps,Improvements,19-May-22,2223/03,SME,N,
360414,ARAN INSULATION LTD,"5,452.74",Insulation Imps,Improvements,31-May-22,2223/03,SME,N,
360499,ARAN INSULATION LTD,"22,564.03",Insulation Imps,Improvements,09-Jun-22,2223/03,SME,N,
360503,ARAN INSULATION LTD,600,Insulation Imps,Improvements,09-Jun-22,2223/03,SME,N,
360503,ARAN INSULATION LTD,"1,361.37",Insulation Imps,Improvements,09-Jun-22,2223/03,SME,N,
360567,ARAN INSULATION LTD,"3,781.80",Insulation Imps,Improvements,13-Jun-22,2223/03,SME,N,
360690,ARAN INSULATION LTD,"3,457.78",Insulation Imps,Improvements,20-Jun-22,2223/03,SME,N,
360691,ARAN INSULATION LTD,"3,003.10",Insulation Imps,Improvements,20-Jun-22,2223/03,SME,N,
360692,ARAN INSULATION LTD,"1,489.21",Insulation Imps,Improvements,20-Jun-22,2223/03,SME,N,
360706,ARAN INSULATION LTD,"2,614.72",Insulation Imps,Improvements,20-Jun-22,2223/03,SME,N,
360707,ARAN INSULATION LTD,"1,671.40",Insulation Imps,Improvements,20-Jun-22,2223/03,SME,N,
360702,ORWELL REMOVALS & STORAGE LTD,"1,170.00",Homeless Prevention Fund,Removal Expenses,23-May-22,2223/03,SME,N,
360407,IAN BOOTH CONSULTANT ENGINEER LTD,768,Roads and Paths,Improvements,31-May-22,2223/03,SME,N,
360399,MARCHDELL LTD,715,Guaranteed Rent Scheme,Rent Payable,06-Jun-22,2223/03,SME,N,
360897,PRIVATE LANDLORD,"1,300.00",Guaranteed Rent Scheme,Rent Payable,28-Jun-22,2223/03,SME,N,
360400,IPSERV LTD,995.85,Communications,Commercial Printing,01-Jun-22,2223/03,SME,N,
360400,IPSERV LTD,-153.34,Central Printing,Commercial Printing,01-Jun-22,2223/03,SME,N,
360437,IPSERV LTD,162,Policy & Strategy (H & W),Misc Supplies & Services Costs,06-Jun-22,2223/03,SME,N,
360437,IPSERV LTD,"1,173.79",Communications,Commercial Printing,06-Jun-22,2223/03,SME,N,
360437,IPSERV LTD,397.72,Central Printing,Commercial Printing,06-Jun-22,2223/03,SME,N,
360680,PRIVATE LANDLORD,669,Guaranteed Rent Scheme,Rent Payable,20-Jun-22,2223/03,ST,N,
360564,PRIVATE LANDLORD,650,Guaranteed Rent Scheme,Rent Payable,13-Jun-22,2223/03,ST,N,
360397,PRIVATE LANDLORD,495,Guaranteed Rent Scheme,Rent Payable,06-Jun-22,2223/03,SME,N,
360398,SHJ HOMES LTD,500,Guaranteed Rent Scheme,Rent Payable,06-Jun-22,2223/03,SME,N,
360681,SHJ HOMES LTD,550,Guaranteed Rent Scheme,Rent Payable,20-Jun-22,2223/03,SME,N,
359830,DUDLEY SMITH PARTNERSHIP LTD,"3,300.00",Cross Street Tech Hub,Prof & Consultancy Fees,29-Apr-22,2223/03,SME,N,
360266,BACTON & WYVERSTONE HORT & SPORTS ASSOC,425,Grants & Contrbns,Contributions & Donations,27-May-22,2223/03,SME,N,
360884,OPTIMUS GAS SERVICES LTD,"3,300.00",Renovation/Home Repair Grants,Grants,28-Jun-22,2223/03,SME,N,
360705,CEDARS PARK ART CIC,432,Transformation Fund,Contributions & Donations,20-Jun-22,2223/03,SME,N,
422618,CEDARS PARK ART CIC,498,Transformation Fund,Contributions & Donations,09-Jun-22,2223/03,SME,N,
359359,JOHNS SLATER AND HAWARD,"6,875.00",Cross Street Tech Hub,Prof & Consultancy Fees,31-Mar-22,2223/03,SME,N,
360627,RENDALL AND RITTNER LTD,459.37,Tenancy Services,Other Service Charges,13-Dec-21,2223/03,SME,N,
360619,ABLEY LETCHFORD PARTNERSHIP LTD,948.75,Devt Management - Apps,Environmental  Consultancy,29-May-22,2223/03,SME,N,
360878,HAMILTON SMITH LETTINGS,500,Guaranteed Rent Scheme,Rent Payable,28-Jun-22,2223/03,SME,N,
422619,HAMILTON SMITH LETTINGS,"1,775.00",Guaranteed Rent Scheme,Rent Payable,17-Jun-22,2223/03,SME,N,
422619,HAMILTON SMITH LETTINGS,750,Guaranteed Rent Scheme,Misc Supplies & Services Costs,17-Jun-22,2223/03,SME,N,
360859,THE RESPUBLICA PARTNERSHIP LTD,"9,800.00",MSM Skills & Innovation Centre,Prof & Consultancy Fees,30-May-22,2223/03,SME,N,
360586,DATATANK LTD,"8,821.00",Shared Revenues Partnership,Misc Supplies & Services Costs,13-Jun-22,2223/03,SME,N,
360246,STRADBROKE MEDIA CIC,550,Grants & Contrbns,Contributions & Donations,27-May-22,2223/03,SME,N,
360244,METFIELD STORES CIC,700,Grants & Contrbns,Contributions & Donations,27-May-22,2223/03,SME,N,
360708,ROSEDALE FUNERAL HOME LTD,"1,300.00",General Rechargeable Works,Misc Supplies & Services Costs,20-Jun-22,2223/03,SME,N,
360850,GOVERNANCE TRAINING AND CONSULTANCY LTD,"2,485.00",Cost of Democracy,Training,27-Jun-22,2223/03,SME,Y,50%
360537,RAF WYTON CHARGES TEAM,"4,270.50",Homeless Prevention Fund,Misc Supplies & Services Costs,10-Jun-22,2223/03,LGE,N,
360620,INTELLIGENT PLANS & EXAMINATIONS (IPE) L,"2,400.00",Development Management Trans,Prof & Consultancy Fees,14-Mar-22,2223/03,SME,Y,50%
360765,ENVIRONMENT MEDIA GROUP LTD,308,Jnt Waste Contract,Conference Expenses,09-Jun-22,2223/03,SME,Y,50%
360729,THE LOG BURNER BARN LTD,"2,500.00",Business Innovation Grants,Grants,21-Jun-22,2223/03,SME,N,
360402,GIPPING OCCUPATIONAL HEALTH LTD,-140,Organisational Devt,Contracted Services,01-Mar-22,2223/03,SME,Y,50%
360650,COUNTRYSTYLE RECYCLING LTD,-600,Trade Waste,Trade Waste Disposal,17-Jun-22,2223/03,SME,Y,50%
